Body Name,Body,Service Division,Expense Type,Date Paid,Transaction Ref,Invoice Amount,Supplier Name
East Lindsey District Council,http://statistics.data.gov.uk/id/local-authority/32UC,AD Chief Finance Officer,Other Private Contractors,03/10/2023,30026334,"14,372.96 ",Public Sector Partnership Services Ltd
East Lindsey District Council,http://statistics.data.gov.uk/id/local-authority/32UC,AD Chief Finance Officer,Staff Training Expenses (Non-Payroll),03/10/2023,30026385,720.00 ,Hoey Ainscough
East Lindsey District Council,http://statistics.data.gov.uk/id/local-authority/32UC,AD Housing & Wellbeing,Bed and Breakfast Accommodation (Homelessness Service),03/10/2023,30026319,"1,920.00 ",Lakeside Hotel
East Lindsey District Council,http://statistics.data.gov.uk/id/local-authority/32UC,AD Housing & Wellbeing,Bed and Breakfast Accommodation (Homelessness Service),03/10/2023,30026320,"2,324.00 ",Lakeside Hotel
East Lindsey District Council,http://statistics.data.gov.uk/id/local-authority/32UC,AD Housing & Wellbeing,Bed and Breakfast Accommodation (Homelessness Service),03/10/2023,30026321,765.00 ,Lakeside Hotel
East Lindsey District Council,http://statistics.data.gov.uk/id/local-authority/32UC,AD Housing & Wellbeing,Bed and Breakfast Accommodation (Homelessness Service),03/10/2023,30026322,969.00 ,Lakeside Hotel
East Lindsey District Council,http://statistics.data.gov.uk/id/local-authority/32UC,AD Housing & Wellbeing,Bed and Breakfast Accommodation (Homelessness Service),03/10/2023,30026324,750.00 ,Lakeside Hotel
East Lindsey District Council,http://statistics.data.gov.uk/id/local-authority/32UC,AD Housing & Wellbeing,Bed and Breakfast Accommodation (Homelessness Service),03/10/2023,30026325,561.00 ,Lakeside Hotel
East Lindsey District Council,http://statistics.data.gov.uk/id/local-authority/32UC,AD Housing & Wellbeing,Bed and Breakfast Accommodation (Homelessness Service),03/10/2023,30026326,665.00 ,Baxter House
East Lindsey District Council,http://statistics.data.gov.uk/id/local-authority/32UC,AD Housing & Wellbeing,Bed and Breakfast Accommodation (Homelessness Service),03/10/2023,30026329,216.70 ,Twenty Hotel And Bar (Boston) LTD
East Lindsey District Council,http://statistics.data.gov.uk/id/local-authority/32UC,AD Housing & Wellbeing,Grants and Contributions to Outside Bodies - No Service Received,03/10/2023,30026356,"5,000.00 ",Furnchurch
East Lindsey District Council,http://statistics.data.gov.uk/id/local-authority/32UC,AD Housing & Wellbeing,Rent Payments,03/10/2023,30026348,340.02 ,Platform Housing Limited
East Lindsey District Council,http://statistics.data.gov.uk/id/local-authority/32UC,AD Housing & Wellbeing,Rent Payments,03/10/2023,30026349,340.02 ,Platform Housing Limited
East Lindsey District Council,http://statistics.data.gov.uk/id/local-authority/32UC,AD Housing & Wellbeing,Rent Payments,03/10/2023,30026350,462.01 ,Platform Housing Limited
East Lindsey District Council,http://statistics.data.gov.uk/id/local-authority/32UC,Healthy Living Services Manager,Grants and Contributions to Outside Bodies - No Service Received,03/10/2023,30026356,"5,000.00 ",Furnchurch
East Lindsey District Council,http://statistics.data.gov.uk/id/local-authority/32UC,Housing & Homelessness,Bed and Breakfast Accommodation (Homelessness Service),03/10/2023,30026319,"1,920.00 ",Lakeside Hotel
East Lindsey District Council,http://statistics.data.gov.uk/id/local-authority/32UC,Housing & Homelessness,Bed and Breakfast Accommodation (Homelessness Service),03/10/2023,30026320,"2,324.00 ",Lakeside Hotel
East Lindsey District Council,http://statistics.data.gov.uk/id/local-authority/32UC,Housing & Homelessness,Bed and Breakfast Accommodation (Homelessness Service),03/10/2023,30026321,765.00 ,Lakeside Hotel
East Lindsey District Council,http://statistics.data.gov.uk/id/local-authority/32UC,Housing & Homelessness,Bed and Breakfast Accommodation (Homelessness Service),03/10/2023,30026322,969.00 ,Lakeside Hotel
East Lindsey District Council,http://statistics.data.gov.uk/id/local-authority/32UC,Housing & Homelessness,Bed and Breakfast Accommodation (Homelessness Service),03/10/2023,30026324,750.00 ,Lakeside Hotel
East Lindsey District Council,http://statistics.data.gov.uk/id/local-authority/32UC,Housing & Homelessness,Bed and Breakfast Accommodation (Homelessness Service),03/10/2023,30026325,561.00 ,Lakeside Hotel
East Lindsey District Council,http://statistics.data.gov.uk/id/local-authority/32UC,Housing & Homelessness,Bed and Breakfast Accommodation (Homelessness Service),03/10/2023,30026326,665.00 ,Baxter House
East Lindsey District Council,http://statistics.data.gov.uk/id/local-authority/32UC,Housing & Homelessness,Bed and Breakfast Accommodation (Homelessness Service),03/10/2023,30026329,216.70 ,Twenty Hotel And Bar (Boston) LTD
East Lindsey District Council,http://statistics.data.gov.uk/id/local-authority/32UC,Housing & Homelessness,Rent Payments,03/10/2023,30026348,340.02 ,Platform Housing Limited
East Lindsey District Council,http://statistics.data.gov.uk/id/local-authority/32UC,Housing & Homelessness,Rent Payments,03/10/2023,30026349,340.02 ,Platform Housing Limited
East Lindsey District Council,http://statistics.data.gov.uk/id/local-authority/32UC,Housing & Homelessness,Rent Payments,03/10/2023,30026350,462.01 ,Platform Housing Limited
East Lindsey District Council,http://statistics.data.gov.uk/id/local-authority/32UC,Neighbourhoods,Water and Sewerage Charges,03/10/2023,30026335,"1,335.92 ",Wave Anglian Water Business National Ltd
East Lindsey District Council,http://statistics.data.gov.uk/id/local-authority/32UC,"Performance, Governance & Commissioning",Conference and Seminars,03/10/2023,30025166,350.00 ,Frontline Consulting Associates Ltd
East Lindsey District Council,http://statistics.data.gov.uk/id/local-authority/32UC,Property,Professional and Contractors Fees,03/10/2023,30025591,"29,545.25 ",International Parking Systems UK Grp Ltd
East Lindsey District Council,http://statistics.data.gov.uk/id/local-authority/32UC,Property,Professional and Contractors Fees,03/10/2023,30025646,"1,493.16 ",Chipside Ltd
East Lindsey District Council,http://statistics.data.gov.uk/id/local-authority/32UC,Property,Water and Sewerage Charges,03/10/2023,30026335,"1,335.92 ",Wave Anglian Water Business National Ltd
East Lindsey District Council,http://statistics.data.gov.uk/id/local-authority/32UC,Waste,Agency Staff,03/10/2023,30026296,"5,727.19 ",Red Rock Partnership Ltd
East Lindsey District Council,http://statistics.data.gov.uk/id/local-authority/32UC,AD Capital - Strategic Projects,Professional and Contractors Fees,05/10/2023,30026313,"460,377.00 ",Lindum Group Ltd
East Lindsey District Council,http://statistics.data.gov.uk/id/local-authority/32UC,AD Housing & Wellbeing,Computer Software Purchase,05/10/2023,30026401,562.50 ,Housing Partners Limited
East Lindsey District Council,http://statistics.data.gov.uk/id/local-authority/32UC,AD Housing & Wellbeing,Grants and Contributions - Where a Service is Received,05/10/2023,30026379,"1,983.00 ",St Marys Church Marshchapel
East Lindsey District Council,http://statistics.data.gov.uk/id/local-authority/32UC,AD Housing & Wellbeing,Grants and Contributions to Outside Bodies - No Service Received,05/10/2023,30026358,"25,898.00 ",Dolphin Mobility
East Lindsey District Council,http://statistics.data.gov.uk/id/local-authority/32UC,AD Housing & Wellbeing,Grants and Contributions to Outside Bodies - No Service Received,05/10/2023,30026359,"5,412.00 ",Dolphin Mobility
East Lindsey District Council,http://statistics.data.gov.uk/id/local-authority/32UC,AD Housing & Wellbeing,Grants and Contributions to Outside Bodies - No Service Received,05/10/2023,30026360,"13,956.32 ",Ron Gale and Sons Ltd
East Lindsey District Council,http://statistics.data.gov.uk/id/local-authority/32UC,AD Housing & Wellbeing,Grants and Contributions to Outside Bodies - No Service Received,05/10/2023,30026361,"15,980.56 ",Warics Ltd
East Lindsey District Council,http://statistics.data.gov.uk/id/local-authority/32UC,AD Housing & Wellbeing,Grants and Contributions to Outside Bodies - No Service Received,05/10/2023,30026362,"13,866.52 ",Warics Ltd
East Lindsey District Council,http://statistics.data.gov.uk/id/local-authority/32UC,AD Housing & Wellbeing,Rent Payments,05/10/2023,30026347,340.02 ,Platform Housing Limited
East Lindsey District Council,http://statistics.data.gov.uk/id/local-authority/32UC,AD Housing & Wellbeing,Rent Payments,05/10/2023,30026351,462.01 ,Platform Housing Limited
East Lindsey District Council,http://statistics.data.gov.uk/id/local-authority/32UC,AD Leisure & Culture,Buildings Maintenance - Responsive,05/10/2023,30026363,583.57 ,TVF UK Limited
East Lindsey District Council,http://statistics.data.gov.uk/id/local-authority/32UC,Business Manager - Towns Fund,Professional and Contractors Fees,05/10/2023,30026393,"11,550.00 ",Garner Heritage Consultants Limited
East Lindsey District Council,http://statistics.data.gov.uk/id/local-authority/32UC,Business Manager - Towns Fund,Professional and Contractors Fees,05/10/2023,30026461,"2,025.75 ",BrightSpark Studios Limited
East Lindsey District Council,http://statistics.data.gov.uk/id/local-authority/32UC,Business Manager - Towns Fund,Professional and Contractors Fees,05/10/2023,30026472,"2,346.00 ",BrightSpark Studios Limited
East Lindsey District Council,http://statistics.data.gov.uk/id/local-authority/32UC,Enabling Activities Housing Development,Grants and Contributions to Outside Bodies - No Service Received,05/10/2023,30026358,"12,949.00 ",Dolphin Mobility
East Lindsey District Council,http://statistics.data.gov.uk/id/local-authority/32UC,Enabling Activities Housing Development,Grants and Contributions to Outside Bodies - No Service Received,05/10/2023,30026359,"2,706.00 ",Dolphin Mobility
East Lindsey District Council,http://statistics.data.gov.uk/id/local-authority/32UC,Enabling Activities Housing Development,Grants and Contributions to Outside Bodies - No Service Received,05/10/2023,30026360,"6,978.16 ",Ron Gale and Sons Ltd
East Lindsey District Council,http://statistics.data.gov.uk/id/local-authority/32UC,Enabling Activities Housing Development,Grants and Contributions to Outside Bodies - No Service Received,05/10/2023,30026361,"7,990.28 ",Warics Ltd
East Lindsey District Council,http://statistics.data.gov.uk/id/local-authority/32UC,Enabling Activities Housing Development,Grants and Contributions to Outside Bodies - No Service Received,05/10/2023,30026362,"6,933.26 ",Warics Ltd
East Lindsey District Council,http://statistics.data.gov.uk/id/local-authority/32UC,Housing & Homelessness,Computer Software Purchase,05/10/2023,30026401,562.50 ,Housing Partners Limited
East Lindsey District Council,http://statistics.data.gov.uk/id/local-authority/32UC,Housing & Homelessness,Grants and Contributions to Outside Bodies - No Service Received,05/10/2023,30026358,"12,949.00 ",Dolphin Mobility
East Lindsey District Council,http://statistics.data.gov.uk/id/local-authority/32UC,Housing & Homelessness,Grants and Contributions to Outside Bodies - No Service Received,05/10/2023,30026359,"2,706.00 ",Dolphin Mobility
East Lindsey District Council,http://statistics.data.gov.uk/id/local-authority/32UC,Housing & Homelessness,Grants and Contributions to Outside Bodies - No Service Received,05/10/2023,30026360,"6,978.16 ",Ron Gale and Sons Ltd
East Lindsey District Council,http://statistics.data.gov.uk/id/local-authority/32UC,Housing & Homelessness,Grants and Contributions to Outside Bodies - No Service Received,05/10/2023,30026361,"7,990.28 ",Warics Ltd
East Lindsey District Council,http://statistics.data.gov.uk/id/local-authority/32UC,Housing & Homelessness,Grants and Contributions to Outside Bodies - No Service Received,05/10/2023,30026362,"6,933.26 ",Warics Ltd
East Lindsey District Council,http://statistics.data.gov.uk/id/local-authority/32UC,Housing & Homelessness,Rent Payments,05/10/2023,30026347,340.02 ,Platform Housing Limited
East Lindsey District Council,http://statistics.data.gov.uk/id/local-authority/32UC,Housing & Homelessness,Rent Payments,05/10/2023,30026351,462.01 ,Platform Housing Limited
East Lindsey District Council,http://statistics.data.gov.uk/id/local-authority/32UC,Information Technology,Computer Software Licence Costs,05/10/2023,30026446,"2,421.94 ",Silktide Ltd
East Lindsey District Council,http://statistics.data.gov.uk/id/local-authority/32UC,Invest East Lindsey,Works to Buildings (Main Contractor),05/10/2023,30026482,619.35 ,Huws Gray Buildbase
East Lindsey District Council,http://statistics.data.gov.uk/id/local-authority/32UC,Neighbourhoods,Agency Staff,05/10/2023,30026526,"4,204.35 ",The Workshop (Wisbech) Ltd
East Lindsey District Council,http://statistics.data.gov.uk/id/local-authority/32UC,Neighbourhoods,Materials and Consumables,05/10/2023,30026346,458.00 ,Eastern Shires Purchasing Organisation
East Lindsey District Council,http://statistics.data.gov.uk/id/local-authority/32UC,Neighbourhoods,Professional and Contractors Fees,05/10/2023,30026076,301.00 ,Witham Third Internal Drainage Board
East Lindsey District Council,http://statistics.data.gov.uk/id/local-authority/32UC,Neighbourhoods,Professional and Contractors Fees,05/10/2023,30026341,350.00 ,H Pawson and Son
East Lindsey District Council,http://statistics.data.gov.uk/id/local-authority/32UC,Neighbourhoods,Water and Sewerage Charges,05/10/2023,30026429,286.96 ,Wave Anglian Water Business National Ltd
East Lindsey District Council,http://statistics.data.gov.uk/id/local-authority/32UC,Neighbourhoods,Water and Sewerage Charges,05/10/2023,30026436,"9,207.65 ",Clear Business
East Lindsey District Council,http://statistics.data.gov.uk/id/local-authority/32UC,Neighbourhoods,Water and Sewerage Charges,05/10/2023,30026492,"2,491.90 ",Wave Anglian Water Business National Ltd
East Lindsey District Council,http://statistics.data.gov.uk/id/local-authority/32UC,"Performance, Governance & Commissioning",External Printing and Design Costs,05/10/2023,30026396,775.52 ,Print.UK.Com
East Lindsey District Council,http://statistics.data.gov.uk/id/local-authority/32UC,"Performance, Governance & Commissioning",Postages,05/10/2023,30026396,385.14 ,Print.UK.Com
East Lindsey District Council,http://statistics.data.gov.uk/id/local-authority/32UC,Planning Policy,Professional and Contractors Fees,05/10/2023,30026527,"19,245.00 ",Create Consulting Engineers Ltd
East Lindsey District Council,http://statistics.data.gov.uk/id/local-authority/32UC,Planning Policy,Professional and Contractors Fees,05/10/2023,30026528,"20,790.00 ",Create Consulting Engineers Ltd
East Lindsey District Council,http://statistics.data.gov.uk/id/local-authority/32UC,Property,Agency Staff,05/10/2023,30026462,"1,054.50 ",The Workshop (Wisbech) Ltd
East Lindsey District Council,http://statistics.data.gov.uk/id/local-authority/32UC,Property,Buildings Maintenance - Programmed,05/10/2023,30026364,420.00 ,Safe Sound Security Systems Links Ltd
East Lindsey District Council,http://statistics.data.gov.uk/id/local-authority/32UC,Property,Buildings Maintenance - Programmed,05/10/2023,30026365,350.00 ,Safe Sound Security Systems Links Ltd
East Lindsey District Council,http://statistics.data.gov.uk/id/local-authority/32UC,Property,Buildings Maintenance - Responsive,05/10/2023,30026369,"5,208.20 ",Nugent Pump Services Ltd
East Lindsey District Council,http://statistics.data.gov.uk/id/local-authority/32UC,Property,Buildings Maintenance - Responsive,05/10/2023,30026377,280.85 ,Lincoln Security Ltd
East Lindsey District Council,http://statistics.data.gov.uk/id/local-authority/32UC,Property,Cleaning Contract,05/10/2023,30026525,711.86 ,Phs Group
East Lindsey District Council,http://statistics.data.gov.uk/id/local-authority/32UC,Property,Grants and Contributions to Outside Bodies - No Service Received,05/10/2023,30026498,"39,520.06 ",Lincolnshire County Council
East Lindsey District Council,http://statistics.data.gov.uk/id/local-authority/32UC,Property,Other Private Contractors,05/10/2023,30026458,580.00 ,Axis Surveys Ltd
East Lindsey District Council,http://statistics.data.gov.uk/id/local-authority/32UC,Property,Professional and Contractors Fees,05/10/2023,30026463,"1,350.00 ",M.A.P Security Solutions Ltd
East Lindsey District Council,http://statistics.data.gov.uk/id/local-authority/32UC,Property,Water and Sewerage Charges,05/10/2023,30026429,286.96 ,Wave Anglian Water Business National Ltd
East Lindsey District Council,http://statistics.data.gov.uk/id/local-authority/32UC,Property,Water and Sewerage Charges,05/10/2023,30026436,"9,081.63 ",Clear Business
East Lindsey District Council,http://statistics.data.gov.uk/id/local-authority/32UC,Property,Water and Sewerage Charges,05/10/2023,30026492,"2,491.90 ",Wave Anglian Water Business National Ltd
East Lindsey District Council,http://statistics.data.gov.uk/id/local-authority/32UC,Transformation Services Manager,Grants and Contributions - Where a Service is Received,05/10/2023,30026379,"1,983.00 ",St Marys Church Marshchapel
East Lindsey District Council,http://statistics.data.gov.uk/id/local-authority/32UC,Waste,Workshop Parts,05/10/2023,30026469,478.38 ,Partic Motor Spares Ltd
East Lindsey District Council,http://statistics.data.gov.uk/id/local-authority/32UC,AD Capital - Regulation,Professional and Contractors Fees,10/10/2023,30026639,"2,925.60 ",G2 Recruitment Solutions
East Lindsey District Council,http://statistics.data.gov.uk/id/local-authority/32UC,AD Capital - Strategic Growth and Development,Grants and Contributions to Outside Bodies - No Service Received,10/10/2023,30026386,"20,000.00 ",The Sessions House CIC
East Lindsey District Council,http://statistics.data.gov.uk/id/local-authority/32UC,AD Capital - Strategic Growth and Development,Grants and Contributions to Outside Bodies - No Service Received,10/10/2023,30026427,"63,125.00 ",BEAM UP Ltd
East Lindsey District Council,http://statistics.data.gov.uk/id/local-authority/32UC,AD Chief Finance Officer,Computer Software Licence Costs,10/10/2023,30026433,"4,941.00 ",Public Sector Partnership Services Ltd
East Lindsey District Council,http://statistics.data.gov.uk/id/local-authority/32UC,AD Chief Finance Officer,Other Employee Expenses (Non-Payroll),10/10/2023,30026423,"6,477.92 ",Public Sector Partnership Services Ltd
East Lindsey District Council,http://statistics.data.gov.uk/id/local-authority/32UC,AD Chief Finance Officer,Public Sector Partnership Services,10/10/2023,30026470,"481,597.58 ",Public Sector Partnership Services Ltd
East Lindsey District Council,http://statistics.data.gov.uk/id/local-authority/32UC,AD Housing & Wellbeing,Bed and Breakfast Accommodation (Homelessness Service),10/10/2023,30026121,945.00 ,Beeston Lodge Hotel
East Lindsey District Council,http://statistics.data.gov.uk/id/local-authority/32UC,AD Housing & Wellbeing,Grants and Contributions to Outside Bodies - No Service Received,10/10/2023,30026355,"5,000.00 ",New Life Community Church
East Lindsey District Council,http://statistics.data.gov.uk/id/local-authority/32UC,AD Housing & Wellbeing,Grants and Contributions to Outside Bodies - No Service Received,10/10/2023,30026357,"5,000.00 ",The Storehouse Church Alford
East Lindsey District Council,http://statistics.data.gov.uk/id/local-authority/32UC,AD Housing & Wellbeing,Grants and Contributions to Outside Bodies - No Service Received,10/10/2023,30026431,"11,504.78 ",South Holland District Council
East Lindsey District Council,http://statistics.data.gov.uk/id/local-authority/32UC,AD Housing & Wellbeing,Grants and Contributions to Outside Bodies - No Service Received,10/10/2023,30026450,"3,882.12 ",Dolphin Mobility
East Lindsey District Council,http://statistics.data.gov.uk/id/local-authority/32UC,AD Housing & Wellbeing,Grants and Contributions to Outside Bodies - No Service Received,10/10/2023,30026609,"14,200.00 ",AGE UK LINDSEY
East Lindsey District Council,http://statistics.data.gov.uk/id/local-authority/32UC,AD Housing & Wellbeing,Professional and Contractors Fees,10/10/2023,30026643,700.00 ,Lincs Digital
East Lindsey District Council,http://statistics.data.gov.uk/id/local-authority/32UC,AD Housing & Wellbeing,Rent Payments,10/10/2023,30026466,475.00 ,�Personal Information Redacted�
East Lindsey District Council,http://statistics.data.gov.uk/id/local-authority/32UC,AD Housing & Wellbeing,Rent Payments,10/10/2023,30026626,256.55 ,Salvation Army
East Lindsey District Council,http://statistics.data.gov.uk/id/local-authority/32UC,AD Leisure & Culture,Buildings Maintenance - Programmed,10/10/2023,30026510,663.10 ,Second Element Limited
East Lindsey District Council,http://statistics.data.gov.uk/id/local-authority/32UC,AD Leisure & Culture,Buildings Maintenance - Responsive,10/10/2023,30026312,"1,340.00 ",Lincolnshire Roller Shutters Ltd
East Lindsey District Council,http://statistics.data.gov.uk/id/local-authority/32UC,Building Control,Professional and Contractors Fees,10/10/2023,30026639,"1,462.80 ",G2 Recruitment Solutions
East Lindsey District Council,http://statistics.data.gov.uk/id/local-authority/32UC,Business Manager - Towns Fund,Professional Fees,10/10/2023,30026405,"11,787.20 ",Heritage Trust of Lincolnshire Ltd
East Lindsey District Council,http://statistics.data.gov.uk/id/local-authority/32UC,Economic Growth Service Manager (Place),Other Miscellaneous Expenses,10/10/2023,30026337,350.00 ,Root Studio
East Lindsey District Council,http://statistics.data.gov.uk/id/local-authority/32UC,Economic Growth Service Manager (Place),Other Miscellaneous Expenses,10/10/2023,30026338,650.00 ,Root Studio
East Lindsey District Council,http://statistics.data.gov.uk/id/local-authority/32UC,Economic Growth Service Manager (Place),Other Miscellaneous Expenses,10/10/2023,30026556,"1,750.00 ",Popcorn Media
East Lindsey District Council,http://statistics.data.gov.uk/id/local-authority/32UC,Enabling Activities Housing Development,Grants and Contributions to Outside Bodies - No Service Received,10/10/2023,30026431,"5,752.39 ",South Holland District Council
East Lindsey District Council,http://statistics.data.gov.uk/id/local-authority/32UC,Enabling Activities Housing Development,Grants and Contributions to Outside Bodies - No Service Received,10/10/2023,30026450,"1,941.06 ",Dolphin Mobility
East Lindsey District Council,http://statistics.data.gov.uk/id/local-authority/32UC,Growth Relationships & Growth Promotions,Other Miscellaneous Expenses,10/10/2023,30026337,350.00 ,Root Studio
East Lindsey District Council,http://statistics.data.gov.uk/id/local-authority/32UC,Growth Relationships & Growth Promotions,Other Miscellaneous Expenses,10/10/2023,30026338,650.00 ,Root Studio
East Lindsey District Council,http://statistics.data.gov.uk/id/local-authority/32UC,Growth Relationships & Growth Promotions,Other Miscellaneous Expenses,10/10/2023,30026556,"1,750.00 ",Popcorn Media
East Lindsey District Council,http://statistics.data.gov.uk/id/local-authority/32UC,Healthy Living Services Manager,Grants and Contributions to Outside Bodies - No Service Received,10/10/2023,30026355,"5,000.00 ",New Life Community Church
East Lindsey District Council,http://statistics.data.gov.uk/id/local-authority/32UC,Healthy Living Services Manager,Grants and Contributions to Outside Bodies - No Service Received,10/10/2023,30026357,"5,000.00 ",The Storehouse Church Alford
East Lindsey District Council,http://statistics.data.gov.uk/id/local-authority/32UC,Healthy Living Services Manager,Grants and Contributions to Outside Bodies - No Service Received,10/10/2023,30026609,"14,200.00 ",AGE UK LINDSEY
East Lindsey District Council,http://statistics.data.gov.uk/id/local-authority/32UC,Healthy Living Services Manager,Professional and Contractors Fees,10/10/2023,30026643,700.00 ,Lincs Digital
East Lindsey District Council,http://statistics.data.gov.uk/id/local-authority/32UC,Housing & Homelessness,Bed and Breakfast Accommodation (Homelessness Service),10/10/2023,30026121,945.00 ,Beeston Lodge Hotel
East Lindsey District Council,http://statistics.data.gov.uk/id/local-authority/32UC,Housing & Homelessness,Grants and Contributions to Outside Bodies - No Service Received,10/10/2023,30026431,"5,752.39 ",South Holland District Council
East Lindsey District Council,http://statistics.data.gov.uk/id/local-authority/32UC,Housing & Homelessness,Grants and Contributions to Outside Bodies - No Service Received,10/10/2023,30026450,"1,941.06 ",Dolphin Mobility
East Lindsey District Council,http://statistics.data.gov.uk/id/local-authority/32UC,Housing & Homelessness,Rent Payments,10/10/2023,30026466,475.00 ,�Personal Information Redacted�
East Lindsey District Council,http://statistics.data.gov.uk/id/local-authority/32UC,Housing & Homelessness,Rent Payments,10/10/2023,30026626,256.55 ,Salvation Army
East Lindsey District Council,http://statistics.data.gov.uk/id/local-authority/32UC,Information Technology,Computer Software Licence Costs,10/10/2023,30026646,"13,106.26 ",Housing Partners Limited
East Lindsey District Council,http://statistics.data.gov.uk/id/local-authority/32UC,Neighbourhoods,Buildings Maintenance - Programmed,10/10/2023,30026510,105.34 ,Second Element Limited
East Lindsey District Council,http://statistics.data.gov.uk/id/local-authority/32UC,Neighbourhoods,Buildings Maintenance - Programmed,10/10/2023,30026565,"8,333.34 ",Gelder Ltd
East Lindsey District Council,http://statistics.data.gov.uk/id/local-authority/32UC,Neighbourhoods,Buildings Maintenance - Programmed,10/10/2023,30026566,"8,333.33 ",Gelder Ltd
East Lindsey District Council,http://statistics.data.gov.uk/id/local-authority/32UC,Neighbourhoods,Buildings Maintenance - Programmed,10/10/2023,30026567,"8,333.33 ",Gelder Ltd
East Lindsey District Council,http://statistics.data.gov.uk/id/local-authority/32UC,Neighbourhoods,Buildings Maintenance - Responsive,10/10/2023,30026440,352.00 ,Second Element Limited
East Lindsey District Council,http://statistics.data.gov.uk/id/local-authority/32UC,Neighbourhoods,Professional and Contractors Fees,10/10/2023,30024997,"1,144.80 ",Sid Dennis and Sons Ltd
East Lindsey District Council,http://statistics.data.gov.uk/id/local-authority/32UC,Property,Buildings Maintenance - Programmed,10/10/2023,30026510,316.02 ,Second Element Limited
East Lindsey District Council,http://statistics.data.gov.uk/id/local-authority/32UC,Property,Buildings Maintenance - Programmed,10/10/2023,30026565,"8,333.34 ",Gelder Ltd
East Lindsey District Council,http://statistics.data.gov.uk/id/local-authority/32UC,Property,Buildings Maintenance - Programmed,10/10/2023,30026566,"8,333.33 ",Gelder Ltd
East Lindsey District Council,http://statistics.data.gov.uk/id/local-authority/32UC,Property,Buildings Maintenance - Programmed,10/10/2023,30026567,"8,333.33 ",Gelder Ltd
East Lindsey District Council,http://statistics.data.gov.uk/id/local-authority/32UC,Property,Buildings Maintenance - Responsive,10/10/2023,30026440,352.00 ,Second Element Limited
East Lindsey District Council,http://statistics.data.gov.uk/id/local-authority/32UC,Property,Cleaning Contract,10/10/2023,30026354,"1,399.45 ",Easy Clean Marshchapel Ltd
East Lindsey District Council,http://statistics.data.gov.uk/id/local-authority/32UC,Property,Cleaning Contract,10/10/2023,30026394,695.00 ,Easy Clean Marshchapel Ltd
East Lindsey District Council,http://statistics.data.gov.uk/id/local-authority/32UC,Property,Electricity,10/10/2023,30026569,631.89 ,British Gas Payment Area 60
East Lindsey District Council,http://statistics.data.gov.uk/id/local-authority/32UC,Property,Grounds Maintenance Contract (External),10/10/2023,30026616,300.00 ,Wold Tree Works Limited
East Lindsey District Council,http://statistics.data.gov.uk/id/local-authority/32UC,Property,Grounds Maintenance Contract (External),10/10/2023,30026617,350.00 ,Wold Tree Works Limited
East Lindsey District Council,http://statistics.data.gov.uk/id/local-authority/32UC,Property,Other Communication Costs,10/10/2023,30026402,300.00 ,Digicube Ltd
East Lindsey District Council,http://statistics.data.gov.uk/id/local-authority/32UC,Property,Other Communication Costs,10/10/2023,30026403,300.00 ,Digicube Ltd
East Lindsey District Council,http://statistics.data.gov.uk/id/local-authority/32UC,Property,Other Communication Costs,10/10/2023,30026611,669.31 ,New Start Networks Ltd
East Lindsey District Council,http://statistics.data.gov.uk/id/local-authority/32UC,Waste,Premises Lease Payments (More than 12 months),10/10/2023,30026571,"5,312.50 ",Lincolnshire County Council
East Lindsey District Council,http://statistics.data.gov.uk/id/local-authority/32UC,Waste,Professional and Contractors Fees,10/10/2023,30026455,496.40 ,Licence Bureau
East Lindsey District Council,http://statistics.data.gov.uk/id/local-authority/32UC,AD Capital - Regulation,Professional and Contractors Fees,12/10/2023,30026703,"3,983.34 ",Boston Borough Council
East Lindsey District Council,http://statistics.data.gov.uk/id/local-authority/32UC,AD Housing & Wellbeing,Rent Payments,12/10/2023,30026662,594.44 ,Platform Housing Limited
East Lindsey District Council,http://statistics.data.gov.uk/id/local-authority/32UC,AD Leisure & Culture,Leisure Management,12/10/2023,30026268,"817,884.50 ",Magna Vitae
East Lindsey District Council,http://statistics.data.gov.uk/id/local-authority/32UC,AD Organisational & Corporate Services,Purchase of Hardware,12/10/2023,30026697,"13,914.60 ",Public Sector Partnership Services Ltd
East Lindsey District Council,http://statistics.data.gov.uk/id/local-authority/32UC,Building Control,Professional and Contractors Fees,12/10/2023,30026703,"1,991.67 ",Boston Borough Council
East Lindsey District Council,http://statistics.data.gov.uk/id/local-authority/32UC,Business Manager - Towns Fund,Professional and Contractors Fees,12/10/2023,30026708,362.50 ,Forceshift Contracting Ltd
East Lindsey District Council,http://statistics.data.gov.uk/id/local-authority/32UC,Business Manager - Towns Fund,Professional and Contractors Fees,12/10/2023,30026709,362.50 ,Forceshift Contracting Ltd
East Lindsey District Council,http://statistics.data.gov.uk/id/local-authority/32UC,Business Manager - Towns Fund,Professional and Contractors Fees,12/10/2023,30026717,"1,375.00 ",The Engaging People Company
East Lindsey District Council,http://statistics.data.gov.uk/id/local-authority/32UC,Development Control,Professional and Contractors Fees,12/10/2023,30026649,750.00 ,Mark Simmonds Planning Services
East Lindsey District Council,http://statistics.data.gov.uk/id/local-authority/32UC,Economic Growth Service Manager (Place),Other Communication Costs,12/10/2023,30026704,560.00 ,F Hunt (Coach Hire) Ltd
East Lindsey District Council,http://statistics.data.gov.uk/id/local-authority/32UC,Economic Growth Service Manager (Place),Performers and Entertainers Fees,12/10/2023,30026716,440.00 ,Earth Bound Misfits Ltd
East Lindsey District Council,http://statistics.data.gov.uk/id/local-authority/32UC,Economic Growth Service Manager (Place),Professional and Contractors Fees,12/10/2023,30026711,689.00 ,Singleton Event Services Ltd
East Lindsey District Council,http://statistics.data.gov.uk/id/local-authority/32UC,Growth Relationships & Growth Promotions,Other Communication Costs,12/10/2023,30026704,560.00 ,F Hunt (Coach Hire) Ltd
East Lindsey District Council,http://statistics.data.gov.uk/id/local-authority/32UC,Growth Relationships & Growth Promotions,Other Miscellaneous Expenses,12/10/2023,30026080,"4,308.40 ",Freeths LLP
East Lindsey District Council,http://statistics.data.gov.uk/id/local-authority/32UC,Growth Relationships & Growth Promotions,Other Miscellaneous Expenses,12/10/2023,30026729,500.00 ,Skegness Area Business Chamber
East Lindsey District Council,http://statistics.data.gov.uk/id/local-authority/32UC,Growth Relationships & Growth Promotions,Performers and Entertainers Fees,12/10/2023,30026716,440.00 ,Earth Bound Misfits Ltd
East Lindsey District Council,http://statistics.data.gov.uk/id/local-authority/32UC,Growth Relationships & Growth Promotions,Professional and Contractors Fees,12/10/2023,30026479,"1,650.00 ",Rose Regeneration Ltd
East Lindsey District Council,http://statistics.data.gov.uk/id/local-authority/32UC,Growth Relationships & Growth Promotions,Professional and Contractors Fees,12/10/2023,30026480,"3,650.00 ",Rose Regeneration Ltd
East Lindsey District Council,http://statistics.data.gov.uk/id/local-authority/32UC,Growth Relationships & Growth Promotions,Professional and Contractors Fees,12/10/2023,30026711,689.00 ,Singleton Event Services Ltd
East Lindsey District Council,http://statistics.data.gov.uk/id/local-authority/32UC,Housing & Homelessness,Rent Payments,12/10/2023,30026662,594.44 ,Platform Housing Limited
East Lindsey District Council,http://statistics.data.gov.uk/id/local-authority/32UC,Information Technology,Mobile Phones,12/10/2023,30026691,"7,293.22 ",Public Sector Partnership Services Ltd
East Lindsey District Council,http://statistics.data.gov.uk/id/local-authority/32UC,Information Technology,Mobile Phones,12/10/2023,30026694,779.18 ,Public Sector Partnership Services Ltd
East Lindsey District Council,http://statistics.data.gov.uk/id/local-authority/32UC,Information Technology,Purchase of Hardware,12/10/2023,30026697,"13,914.60 ",Public Sector Partnership Services Ltd
East Lindsey District Council,http://statistics.data.gov.uk/id/local-authority/32UC,Neighbourhoods,Professional and Contractors Fees,12/10/2023,30026667,"1,190.40 ",MELVYN MOFFATT AND CO LTD
East Lindsey District Council,http://statistics.data.gov.uk/id/local-authority/32UC,Neighbourhoods,Professional and Contractors Fees,12/10/2023,30026701,686.88 ,Sid Dennis and Sons Ltd
East Lindsey District Council,http://statistics.data.gov.uk/id/local-authority/32UC,Neighbourhoods,Professional and Contractors Fees,12/10/2023,30026702,915.84 ,Sid Dennis and Sons Ltd
East Lindsey District Council,http://statistics.data.gov.uk/id/local-authority/32UC,Organisation Improvement & Development,Staff Training Expenses (Non-Payroll),12/10/2023,30026645,700.00 ,Bell First Aid Training
East Lindsey District Council,http://statistics.data.gov.uk/id/local-authority/32UC,"Performance, Governance & Commissioning",Rent Payments,12/10/2023,30026724,700.00 ,The Meridale Organisation
East Lindsey District Council,http://statistics.data.gov.uk/id/local-authority/32UC,Property,Professional and Contractors Fees,12/10/2023,30026667,"1,190.40 ",MELVYN MOFFATT AND CO LTD
East Lindsey District Council,http://statistics.data.gov.uk/id/local-authority/32UC,Waste,Workshop Parts,12/10/2023,30026352,"8,870.43 ",Vaculug Technologies Ltd
East Lindsey District Council,http://statistics.data.gov.uk/id/local-authority/32UC,AD Leisure & Culture,Buildings Maintenance - Responsive,13/10/2023,30026730,961.16 ,Variopool B V
East Lindsey District Council,http://statistics.data.gov.uk/id/local-authority/32UC,AD Capital - Regulation,Professional and Contractors Fees,17/10/2023,30026520,"3,652.42 ",Lincolnshire County Council
East Lindsey District Council,http://statistics.data.gov.uk/id/local-authority/32UC,AD Capital - Strategic Projects,Professional Fees,17/10/2023,30022992,"2,187.58 ",Boston Borough Council
East Lindsey District Council,http://statistics.data.gov.uk/id/local-authority/32UC,AD Capital - Strategic Projects,Works to Buildings (Main Contractor),17/10/2023,30026642,"8,576.60 ",Magna Vitae
East Lindsey District Council,http://statistics.data.gov.uk/id/local-authority/32UC,AD Housing & Wellbeing,Bed and Breakfast Accommodation (Homelessness Service),17/10/2023,30026557,270.00 ,Beeston Lodge Hotel
East Lindsey District Council,http://statistics.data.gov.uk/id/local-authority/32UC,AD Housing & Wellbeing,Bed and Breakfast Accommodation (Homelessness Service),17/10/2023,30026558,"1,995.00 ",Beeston Lodge Hotel
East Lindsey District Council,http://statistics.data.gov.uk/id/local-authority/32UC,AD Housing & Wellbeing,Bed and Breakfast Accommodation (Homelessness Service),17/10/2023,30026559,"1,050.00 ",Beeston Lodge Hotel
East Lindsey District Council,http://statistics.data.gov.uk/id/local-authority/32UC,AD Housing & Wellbeing,Bed and Breakfast Accommodation (Homelessness Service),17/10/2023,30026772,750.00 ,Baxter House
East Lindsey District Council,http://statistics.data.gov.uk/id/local-authority/32UC,AD Housing & Wellbeing,Bed and Breakfast Accommodation (Homelessness Service),17/10/2023,30026773,420.00 ,The Lord Grey
East Lindsey District Council,http://statistics.data.gov.uk/id/local-authority/32UC,AD Housing & Wellbeing,Bed and Breakfast Accommodation (Homelessness Service),17/10/2023,30026779,"1,350.00 ",Coxswains Cabin
East Lindsey District Council,http://statistics.data.gov.uk/id/local-authority/32UC,AD Housing & Wellbeing,Bed and Breakfast Accommodation (Homelessness Service),17/10/2023,30026806,"1,230.00 ",Coxswains Cabin
East Lindsey District Council,http://statistics.data.gov.uk/id/local-authority/32UC,AD Housing & Wellbeing,Grants and Contributions - Where a Service is Received,17/10/2023,30026448,500.00 ,Maltby le Marsh Women's Institute
East Lindsey District Council,http://statistics.data.gov.uk/id/local-authority/32UC,AD Housing & Wellbeing,Grants and Contributions - Where a Service is Received,17/10/2023,30026737,"2,000.00 ",Hamilton Hall
East Lindsey District Council,http://statistics.data.gov.uk/id/local-authority/32UC,AD Housing & Wellbeing,Grants and Contributions - Where a Service is Received,17/10/2023,30026846,"10,000.00 ",Charis Grants Ltd
East Lindsey District Council,http://statistics.data.gov.uk/id/local-authority/32UC,AD Housing & Wellbeing,Grants and Contributions to Outside Bodies - No Service Received,17/10/2023,30026732,"14,037.90 ",Clough Build Limited
East Lindsey District Council,http://statistics.data.gov.uk/id/local-authority/32UC,AD Housing & Wellbeing,Grants and Contributions to Outside Bodies - No Service Received,17/10/2023,30026733,"2,500.00 ",GF Design Services
East Lindsey District Council,http://statistics.data.gov.uk/id/local-authority/32UC,AD Housing & Wellbeing,Grants and Contributions to Outside Bodies - No Service Received,17/10/2023,30026739,"5,000.00 ",Horncastle Crisis Support Team
East Lindsey District Council,http://statistics.data.gov.uk/id/local-authority/32UC,AD Housing & Wellbeing,Grants and Contributions to Outside Bodies - No Service Received,17/10/2023,30026775,"30,000.00 ",Lincolnshire Community Foundation
East Lindsey District Council,http://statistics.data.gov.uk/id/local-authority/32UC,AD Housing & Wellbeing,Grants and Contributions to Outside Bodies - No Service Received,17/10/2023,30026820,"3,750.00 ",GF Design Services
East Lindsey District Council,http://statistics.data.gov.uk/id/local-authority/32UC,AD Housing & Wellbeing,Grants and Contributions to Outside Bodies - No Service Received,17/10/2023,30026822,"2,500.00 ",GF Design Services
East Lindsey District Council,http://statistics.data.gov.uk/id/local-authority/32UC,AD Housing & Wellbeing,Grants and Contributions to Outside Bodies - No Service Received,17/10/2023,30026825,"2,500.00 ",GF Design Services
East Lindsey District Council,http://statistics.data.gov.uk/id/local-authority/32UC,AD Housing & Wellbeing,Grants and Contributions to Outside Bodies - No Service Received,17/10/2023,30026826,"2,500.00 ",GF Design Services
East Lindsey District Council,http://statistics.data.gov.uk/id/local-authority/32UC,AD Housing & Wellbeing,Other local authorities,17/10/2023,30026426,"250,979.42 ",North Kesteven District Council
East Lindsey District Council,http://statistics.data.gov.uk/id/local-authority/32UC,Development Control,Professional and Contractors Fees,17/10/2023,30026681,"31,367.42 ",Heritage Trust of Lincolnshire Ltd
East Lindsey District Council,http://statistics.data.gov.uk/id/local-authority/32UC,Economic Growth Service Manager (Place),Other Communication Costs,17/10/2023,30026478,"35,000.00 ",Visit Lincoln Community Interest Company
East Lindsey District Council,http://statistics.data.gov.uk/id/local-authority/32UC,Enabling Activities Housing Development,Grants and Contributions to Outside Bodies - No Service Received,17/10/2023,30026732,"7,018.95 ",Clough Build Limited
East Lindsey District Council,http://statistics.data.gov.uk/id/local-authority/32UC,Enabling Activities Housing Development,Grants and Contributions to Outside Bodies - No Service Received,17/10/2023,30026733,"1,250.00 ",GF Design Services
East Lindsey District Council,http://statistics.data.gov.uk/id/local-authority/32UC,Enabling Activities Housing Development,Grants and Contributions to Outside Bodies - No Service Received,17/10/2023,30026820,"1,875.00 ",GF Design Services
East Lindsey District Council,http://statistics.data.gov.uk/id/local-authority/32UC,Enabling Activities Housing Development,Grants and Contributions to Outside Bodies - No Service Received,17/10/2023,30026822,"1,250.00 ",GF Design Services
East Lindsey District Council,http://statistics.data.gov.uk/id/local-authority/32UC,Enabling Activities Housing Development,Grants and Contributions to Outside Bodies - No Service Received,17/10/2023,30026825,"1,250.00 ",GF Design Services
East Lindsey District Council,http://statistics.data.gov.uk/id/local-authority/32UC,Enabling Activities Housing Development,Grants and Contributions to Outside Bodies - No Service Received,17/10/2023,30026826,"1,250.00 ",GF Design Services
East Lindsey District Council,http://statistics.data.gov.uk/id/local-authority/32UC,Environmental Health,Other Miscellaneous Expenses,17/10/2023,30026715,300.00 ,Pet to Vet
East Lindsey District Council,http://statistics.data.gov.uk/id/local-authority/32UC,Environmental Health,Other Miscellaneous Expenses,17/10/2023,30026722,300.00 ,Pet to Vet
East Lindsey District Council,http://statistics.data.gov.uk/id/local-authority/32UC,Environmental Health,Professional and Contractors Fees,17/10/2023,30026663,"2,220.00 ",H&W Building Specialists
East Lindsey District Council,http://statistics.data.gov.uk/id/local-authority/32UC,Environmental Health,Professional and Contractors Fees,17/10/2023,30026676,"1,312.50 ",G2 Recruitment Solutions
East Lindsey District Council,http://statistics.data.gov.uk/id/local-authority/32UC,Growth Relationships & Growth Promotions,Grants and Contributions - Where a Service is Received,17/10/2023,30026493,"12,270.71 ",Heritage Trust of Lincolnshire Ltd
East Lindsey District Council,http://statistics.data.gov.uk/id/local-authority/32UC,Growth Relationships & Growth Promotions,Grants and Contributions to Outside Bodies - No Service Received,17/10/2023,30026518,"2,649.59 ",Boston Borough Council
East Lindsey District Council,http://statistics.data.gov.uk/id/local-authority/32UC,Growth Relationships & Growth Promotions,Grants and Contributions to Outside Bodies - No Service Received,17/10/2023,30026734,"11,785.28 ",EMR
East Lindsey District Council,http://statistics.data.gov.uk/id/local-authority/32UC,Growth Relationships & Growth Promotions,Other Communication Costs,17/10/2023,30026478,"35,000.00 ",Visit Lincoln Community Interest Company
East Lindsey District Council,http://statistics.data.gov.uk/id/local-authority/32UC,Growth Relationships & Growth Promotions,Professional Fees,17/10/2023,30026447,"15,913.87 ",Heritage Trust of Lincolnshire Ltd
East Lindsey District Council,http://statistics.data.gov.uk/id/local-authority/32UC,Healthy Living Services Manager,Grants and Contributions to Outside Bodies - No Service Received,17/10/2023,30026739,"5,000.00 ",Horncastle Crisis Support Team
East Lindsey District Council,http://statistics.data.gov.uk/id/local-authority/32UC,Healthy Living Services Manager,Grants and Contributions to Outside Bodies - No Service Received,17/10/2023,30026775,"30,000.00 ",Lincolnshire Community Foundation
East Lindsey District Council,http://statistics.data.gov.uk/id/local-authority/32UC,Housing & Homelessness,Bed and Breakfast Accommodation (Homelessness Service),17/10/2023,30026557,270.00 ,Beeston Lodge Hotel
East Lindsey District Council,http://statistics.data.gov.uk/id/local-authority/32UC,Housing & Homelessness,Bed and Breakfast Accommodation (Homelessness Service),17/10/2023,30026558,"1,995.00 ",Beeston Lodge Hotel
East Lindsey District Council,http://statistics.data.gov.uk/id/local-authority/32UC,Housing & Homelessness,Bed and Breakfast Accommodation (Homelessness Service),17/10/2023,30026559,"1,050.00 ",Beeston Lodge Hotel
East Lindsey District Council,http://statistics.data.gov.uk/id/local-authority/32UC,Housing & Homelessness,Bed and Breakfast Accommodation (Homelessness Service),17/10/2023,30026772,750.00 ,Baxter House
East Lindsey District Council,http://statistics.data.gov.uk/id/local-authority/32UC,Housing & Homelessness,Bed and Breakfast Accommodation (Homelessness Service),17/10/2023,30026773,420.00 ,The Lord Grey
East Lindsey District Council,http://statistics.data.gov.uk/id/local-authority/32UC,Housing & Homelessness,Bed and Breakfast Accommodation (Homelessness Service),17/10/2023,30026779,"1,350.00 ",Coxswains Cabin
East Lindsey District Council,http://statistics.data.gov.uk/id/local-authority/32UC,Housing & Homelessness,Bed and Breakfast Accommodation (Homelessness Service),17/10/2023,30026806,"1,230.00 ",Coxswains Cabin
East Lindsey District Council,http://statistics.data.gov.uk/id/local-authority/32UC,Housing & Homelessness,Grants and Contributions to Outside Bodies - No Service Received,17/10/2023,30026732,"7,018.95 ",Clough Build Limited
East Lindsey District Council,http://statistics.data.gov.uk/id/local-authority/32UC,Housing & Homelessness,Grants and Contributions to Outside Bodies - No Service Received,17/10/2023,30026733,"1,250.00 ",GF Design Services
East Lindsey District Council,http://statistics.data.gov.uk/id/local-authority/32UC,Housing & Homelessness,Grants and Contributions to Outside Bodies - No Service Received,17/10/2023,30026820,"1,875.00 ",GF Design Services
East Lindsey District Council,http://statistics.data.gov.uk/id/local-authority/32UC,Housing & Homelessness,Grants and Contributions to Outside Bodies - No Service Received,17/10/2023,30026822,"1,250.00 ",GF Design Services
East Lindsey District Council,http://statistics.data.gov.uk/id/local-authority/32UC,Housing & Homelessness,Grants and Contributions to Outside Bodies - No Service Received,17/10/2023,30026825,"1,250.00 ",GF Design Services
East Lindsey District Council,http://statistics.data.gov.uk/id/local-authority/32UC,Housing & Homelessness,Grants and Contributions to Outside Bodies - No Service Received,17/10/2023,30026826,"1,250.00 ",GF Design Services
East Lindsey District Council,http://statistics.data.gov.uk/id/local-authority/32UC,Information Technology,Computer Software Licence Costs,17/10/2023,30026161,"9,825.00 ",Routeware
East Lindsey District Council,http://statistics.data.gov.uk/id/local-authority/32UC,Invest East Lindsey,Works to Buildings (Main Contractor),17/10/2023,30026577,"2,533.75 ",John Martin-Hoyes Limited
East Lindsey District Council,http://statistics.data.gov.uk/id/local-authority/32UC,Neighbourhoods,Materials and Consumables,17/10/2023,30026449,255.00 ,Asbestos Compliance Management Services Ltd
East Lindsey District Council,http://statistics.data.gov.uk/id/local-authority/32UC,Neighbourhoods,Professional and Contractors Fees,17/10/2023,30026503,468.00 ,Greenaway
East Lindsey District Council,http://statistics.data.gov.uk/id/local-authority/32UC,Neighbourhoods,Professional and Contractors Fees,17/10/2023,30026858,801.36 ,Sid Dennis and Sons Ltd
East Lindsey District Council,http://statistics.data.gov.uk/id/local-authority/32UC,Neighbourhoods,Professional and Contractors Fees,17/10/2023,30026860,686.88 ,Sid Dennis and Sons Ltd
East Lindsey District Council,http://statistics.data.gov.uk/id/local-authority/32UC,Neighbourhoods,Staff Training Expenses (Non-Payroll),17/10/2023,30026696,717.00 ,East Lincs Rural Training
East Lindsey District Council,http://statistics.data.gov.uk/id/local-authority/32UC,Neighbourhoods,Staff Training Expenses (Non-Payroll),17/10/2023,30026698,680.00 ,East Lincs Rural Training
East Lindsey District Council,http://statistics.data.gov.uk/id/local-authority/32UC,"Performance, Governance & Commissioning",Grants and Contributions to Outside Bodies - No Service Received,17/10/2023,30026736,"1,000.00 ",Horncastle and District Community Assoc
East Lindsey District Council,http://statistics.data.gov.uk/id/local-authority/32UC,"Performance, Governance & Commissioning",Grants and Contributions to Outside Bodies - No Service Received,17/10/2023,30026786,300.00 ,Stickney Bowls Club
East Lindsey District Council,http://statistics.data.gov.uk/id/local-authority/32UC,Property,Cleaning Contract,17/10/2023,30027167,"7,785.35 ",Mitie Cleaning & Environmental Services Ltd
East Lindsey District Council,http://statistics.data.gov.uk/id/local-authority/32UC,Property,Fixtures And Fittings,17/10/2023,30026827,"1,534.29 ",Lincolnshire Office Friends
East Lindsey District Council,http://statistics.data.gov.uk/id/local-authority/32UC,Property,Legal Fees,17/10/2023,30026630,280.50 ,Freeths LLP
East Lindsey District Council,http://statistics.data.gov.uk/id/local-authority/32UC,Property,Professional and Contractors Fees,17/10/2023,30026647,527.20 ,Sid Dennis and Sons Ltd
East Lindsey District Council,http://statistics.data.gov.uk/id/local-authority/32UC,Property,Professional and Contractors Fees,17/10/2023,30026706,600.00 ,B and B Tree Specialists
East Lindsey District Council,http://statistics.data.gov.uk/id/local-authority/32UC,Transformation Services Manager,Grants and Contributions - Where a Service is Received,17/10/2023,30026448,500.00 ,Maltby le Marsh Women's Institute
East Lindsey District Council,http://statistics.data.gov.uk/id/local-authority/32UC,Transformation Services Manager,Grants and Contributions - Where a Service is Received,17/10/2023,30026737,"2,000.00 ",Hamilton Hall
East Lindsey District Council,http://statistics.data.gov.uk/id/local-authority/32UC,Waste,Purchase of Software,17/10/2023,30026225,"1,728.00 ",Autodata Ltd
East Lindsey District Council,http://statistics.data.gov.uk/id/local-authority/32UC,Waste,Workshop Parts,17/10/2023,30026279,"1,636.42 ",Chandlers (Farm Equipment) Ltd
East Lindsey District Council,http://statistics.data.gov.uk/id/local-authority/32UC,Waste,Workshop Parts,17/10/2023,30026753,217.02 ,N T Shaw of Louth
East Lindsey District Council,http://statistics.data.gov.uk/id/local-authority/32UC,Waste,Workshop Parts,17/10/2023,30026839,450.00 ,�Personal Information Redacted�
East Lindsey District Council,http://statistics.data.gov.uk/id/local-authority/32UC,Wellbeing Services Manager,Grants and Contributions - Where a Service is Received,17/10/2023,30026846,"10,000.00 ",Charis Grants Ltd
East Lindsey District Council,http://statistics.data.gov.uk/id/local-authority/32UC,Wellbeing Services Manager,Other local authorities,17/10/2023,30026426,"250,979.42 ",North Kesteven District Council
East Lindsey District Council,http://statistics.data.gov.uk/id/local-authority/32UC,AD Chief Finance Officer,Postages,19/10/2023,30026430,790.00 ,Royal Mail Group Ltd
East Lindsey District Council,http://statistics.data.gov.uk/id/local-authority/32UC,AD Housing & Wellbeing,Grants and Contributions to Outside Bodies - No Service Received,19/10/2023,30026877,"17,391.14 ",Andrew Wrisdale Building Contractor
East Lindsey District Council,http://statistics.data.gov.uk/id/local-authority/32UC,AD Housing & Wellbeing,Grants and Contributions to Outside Bodies - No Service Received,19/10/2023,30026878,"12,389.98 ",Andrew Wrisdale Building Contractor
East Lindsey District Council,http://statistics.data.gov.uk/id/local-authority/32UC,AD Housing & Wellbeing,Grants and Contributions to Outside Bodies - No Service Received,19/10/2023,30026880,"14,122.00 ",Obam Stairlifts
East Lindsey District Council,http://statistics.data.gov.uk/id/local-authority/32UC,AD Housing & Wellbeing,Grants and Contributions to Outside Bodies - No Service Received,19/10/2023,30026881,"10,621.22 ",Mark Donner Ltd
East Lindsey District Council,http://statistics.data.gov.uk/id/local-authority/32UC,AD Housing & Wellbeing,Other Miscellaneous Expenses,19/10/2023,30026926,380.00 ,Waste Away Clearance Service
East Lindsey District Council,http://statistics.data.gov.uk/id/local-authority/32UC,AD Housing & Wellbeing,Rent Payments,19/10/2023,30026924,375.44 ,Platform Housing Limited
East Lindsey District Council,http://statistics.data.gov.uk/id/local-authority/32UC,AD Leisure & Culture,Buildings Maintenance - Programmed,19/10/2023,30026366,800.00 ,H20 Servicing Ltd
East Lindsey District Council,http://statistics.data.gov.uk/id/local-authority/32UC,AD Leisure & Culture,Buildings Maintenance - Programmed,19/10/2023,30026367,"1,342.00 ",H20 Servicing Ltd
East Lindsey District Council,http://statistics.data.gov.uk/id/local-authority/32UC,AD Leisure & Culture,Buildings Maintenance - Responsive,19/10/2023,30026368,378.20 ,Airco Refrigeration Air Conditioning Ltd
East Lindsey District Council,http://statistics.data.gov.uk/id/local-authority/32UC,AD Organisational & Corporate Services,Purchase of Hardware,19/10/2023,30026810,"16,980.17 ",Softcat Plc
East Lindsey District Council,http://statistics.data.gov.uk/id/local-authority/32UC,Business Manager - Towns Fund,Professional and Contractors Fees,19/10/2023,30026910,362.50 ,Forceshift Contracting Ltd
East Lindsey District Council,http://statistics.data.gov.uk/id/local-authority/32UC,Enabling Activities Housing Development,Grants and Contributions to Outside Bodies - No Service Received,19/10/2023,30026877,"8,695.57 ",Andrew Wrisdale Building Contractor
East Lindsey District Council,http://statistics.data.gov.uk/id/local-authority/32UC,Enabling Activities Housing Development,Grants and Contributions to Outside Bodies - No Service Received,19/10/2023,30026878,"6,194.99 ",Andrew Wrisdale Building Contractor
East Lindsey District Council,http://statistics.data.gov.uk/id/local-authority/32UC,Enabling Activities Housing Development,Grants and Contributions to Outside Bodies - No Service Received,19/10/2023,30026880,"7,061.00 ",Obam Stairlifts
East Lindsey District Council,http://statistics.data.gov.uk/id/local-authority/32UC,Enabling Activities Housing Development,Grants and Contributions to Outside Bodies - No Service Received,19/10/2023,30026881,"5,310.61 ",Mark Donner Ltd
East Lindsey District Council,http://statistics.data.gov.uk/id/local-authority/32UC,Environmental Health,Professional and Contractors Fees,19/10/2023,30026188,"1,812.00 ",Bureau Veritas UK Ltd
East Lindsey District Council,http://statistics.data.gov.uk/id/local-authority/32UC,Housing & Homelessness,Grants and Contributions to Outside Bodies - No Service Received,19/10/2023,30026877,"8,695.57 ",Andrew Wrisdale Building Contractor
East Lindsey District Council,http://statistics.data.gov.uk/id/local-authority/32UC,Housing & Homelessness,Grants and Contributions to Outside Bodies - No Service Received,19/10/2023,30026878,"6,194.99 ",Andrew Wrisdale Building Contractor
East Lindsey District Council,http://statistics.data.gov.uk/id/local-authority/32UC,Housing & Homelessness,Grants and Contributions to Outside Bodies - No Service Received,19/10/2023,30026880,"7,061.00 ",Obam Stairlifts
East Lindsey District Council,http://statistics.data.gov.uk/id/local-authority/32UC,Housing & Homelessness,Grants and Contributions to Outside Bodies - No Service Received,19/10/2023,30026881,"5,310.61 ",Mark Donner Ltd
East Lindsey District Council,http://statistics.data.gov.uk/id/local-authority/32UC,Housing & Homelessness,Other Miscellaneous Expenses,19/10/2023,30026926,380.00 ,Waste Away Clearance Service
East Lindsey District Council,http://statistics.data.gov.uk/id/local-authority/32UC,Housing & Homelessness,Rent Payments,19/10/2023,30026924,375.44 ,Platform Housing Limited
East Lindsey District Council,http://statistics.data.gov.uk/id/local-authority/32UC,Information Technology,Purchase of Hardware,19/10/2023,30026810,"16,980.17 ",Softcat Plc
East Lindsey District Council,http://statistics.data.gov.uk/id/local-authority/32UC,Neighbourhoods,Agency Staff,19/10/2023,30026872,"4,339.84 ",The Workshop (Wisbech) Ltd
East Lindsey District Council,http://statistics.data.gov.uk/id/local-authority/32UC,Neighbourhoods,Buildings Maintenance - Programmed,19/10/2023,30026789,510.08 ,Brenntag UK Limited
East Lindsey District Council,http://statistics.data.gov.uk/id/local-authority/32UC,Neighbourhoods,Professional and Contractors Fees,19/10/2023,30026873,"1,030.32 ",Sid Dennis and Sons Ltd
East Lindsey District Council,http://statistics.data.gov.uk/id/local-authority/32UC,Neighbourhoods,Professional and Contractors Fees,19/10/2023,30026874,572.40 ,Sid Dennis and Sons Ltd
East Lindsey District Council,http://statistics.data.gov.uk/id/local-authority/32UC,Neighbourhoods,Water and Sewerage Charges,19/10/2023,30026785,284.31 ,Wave Anglian Water Business National Ltd
East Lindsey District Council,http://statistics.data.gov.uk/id/local-authority/32UC,Neighbourhoods,Water and Sewerage Charges,19/10/2023,30026793,369.02 ,Wave Anglian Water Business National Ltd
East Lindsey District Council,http://statistics.data.gov.uk/id/local-authority/32UC,Neighbourhoods,Water and Sewerage Charges,19/10/2023,30026799,407.16 ,Wave Anglian Water Business National Ltd
East Lindsey District Council,http://statistics.data.gov.uk/id/local-authority/32UC,"Performance, Governance & Commissioning",Conference and Seminars,19/10/2023,30026848,525.00 ,Boston United Football Club Ltd
East Lindsey District Council,http://statistics.data.gov.uk/id/local-authority/32UC,Property,Agency Staff,19/10/2023,30026911,873.20 ,The Workshop (Wisbech) Ltd
East Lindsey District Council,http://statistics.data.gov.uk/id/local-authority/32UC,Property,Buildings Maintenance - Programmed,19/10/2023,30026789,510.08 ,Brenntag UK Limited
East Lindsey District Council,http://statistics.data.gov.uk/id/local-authority/32UC,Property,Buildings Maintenance - Responsive,19/10/2023,30026922,450.00 ,GRS Signs Ltd
East Lindsey District Council,http://statistics.data.gov.uk/id/local-authority/32UC,Property,Other Private Contractors,19/10/2023,30026918,235.00 ,GRS Signs Ltd
East Lindsey District Council,http://statistics.data.gov.uk/id/local-authority/32UC,Property,Professional and Contractors Fees,19/10/2023,30026395,520.00 ,ELAS Occupational Health Ltd
East Lindsey District Council,http://statistics.data.gov.uk/id/local-authority/32UC,Property,Water and Sewerage Charges,19/10/2023,30026785,284.31 ,Wave Anglian Water Business National Ltd
East Lindsey District Council,http://statistics.data.gov.uk/id/local-authority/32UC,Property,Water and Sewerage Charges,19/10/2023,30026793,369.02 ,Wave Anglian Water Business National Ltd
East Lindsey District Council,http://statistics.data.gov.uk/id/local-authority/32UC,Property,Water and Sewerage Charges,19/10/2023,30026799,407.16 ,Wave Anglian Water Business National Ltd
East Lindsey District Council,http://statistics.data.gov.uk/id/local-authority/32UC,Property,Water and Sewerage Charges,19/10/2023,30026844,"3,841.87 ",Wave Anglian Water Business National Ltd
East Lindsey District Council,http://statistics.data.gov.uk/id/local-authority/32UC,Waste,Agency Staff,19/10/2023,30026852,"5,498.05 ",Red Rock Partnership Ltd
East Lindsey District Council,http://statistics.data.gov.uk/id/local-authority/32UC,Waste,Professional and Contractors Fees,19/10/2023,30026869,"1,699.67 ",TIS Training Consultancy
East Lindsey District Council,http://statistics.data.gov.uk/id/local-authority/32UC,Waste,Workshop Parts,19/10/2023,30026165,270.00 ,Ford and Slater DAF (Lincoln Newark)
East Lindsey District Council,http://statistics.data.gov.uk/id/local-authority/32UC,Waste,Workshop Parts,19/10/2023,30026166,"1,943.81 ",Ford and Slater DAF (Lincoln Newark)
East Lindsey District Council,http://statistics.data.gov.uk/id/local-authority/32UC,Waste,Workshop Parts,19/10/2023,30026171,270.00 ,Ford and Slater DAF (Lincoln Newark)
East Lindsey District Council,http://statistics.data.gov.uk/id/local-authority/32UC,Waste,Workshop Parts,19/10/2023,30026173,837.07 ,Ford and Slater DAF (Lincoln Newark)
East Lindsey District Council,http://statistics.data.gov.uk/id/local-authority/32UC,Waste,Workshop Parts,19/10/2023,30026224,209.49 ,Dennis Eagle Ltd
East Lindsey District Council,http://statistics.data.gov.uk/id/local-authority/32UC,AD Capital - Strategic Growth and Development,Grants and Contributions to Outside Bodies - No Service Received,24/10/2023,30026994,"21,000.00 ",NBV Enterprise Solutions Limited
East Lindsey District Council,http://statistics.data.gov.uk/id/local-authority/32UC,AD Chief Finance Officer,Employee Professional Subscriptions (Non-Payroll),24/10/2023,30026314,"1,059.62 ",Tuskerdirect Ltd
East Lindsey District Council,http://statistics.data.gov.uk/id/local-authority/32UC,AD Chief Finance Officer,Employee Professional Subscriptions (Non-Payroll),24/10/2023,30026315,"1,500.58 ",Tuskerdirect Ltd
East Lindsey District Council,http://statistics.data.gov.uk/id/local-authority/32UC,AD Chief Finance Officer,Employee Professional Subscriptions (Non-Payroll),24/10/2023,30026316,"1,505.20 ",Tuskerdirect Ltd
East Lindsey District Council,http://statistics.data.gov.uk/id/local-authority/32UC,AD Chief Finance Officer,Lincolnshire Legal Services,24/10/2023,30026309,"21,010.60 ",Lincolnshire County Council
East Lindsey District Council,http://statistics.data.gov.uk/id/local-authority/32UC,AD Chief Finance Officer,Postages,24/10/2023,30026969,"18,000.00 ",Quadient UK Ltd c/o Neopost
East Lindsey District Council,http://statistics.data.gov.uk/id/local-authority/32UC,AD Chief Finance Officer,Vehicle Hire,24/10/2023,30026277,544.36 ,Tjs Self Drive
East Lindsey District Council,http://statistics.data.gov.uk/id/local-authority/32UC,AD Housing & Wellbeing,Furniture and Equipment,24/10/2023,30026505,"1,187.00 ",Alertcom Limited
East Lindsey District Council,http://statistics.data.gov.uk/id/local-authority/32UC,AD Housing & Wellbeing,Grants and Contributions - Where a Service is Received,24/10/2023,30026875,"6,596.75 ",Citizens Advice Lindsey
East Lindsey District Council,http://statistics.data.gov.uk/id/local-authority/32UC,AD Housing & Wellbeing,Grants and Contributions to Outside Bodies - No Service Received,24/10/2023,30026876,"15,300.00 ",Citizens Advice Lindsey
East Lindsey District Council,http://statistics.data.gov.uk/id/local-authority/32UC,AD Housing & Wellbeing,Grants and Contributions to Outside Bodies - No Service Received,24/10/2023,30026947,"1,000.00 ",Horncastle Chef
East Lindsey District Council,http://statistics.data.gov.uk/id/local-authority/32UC,AD Leisure & Culture,Buildings Maintenance - Programmed,24/10/2023,30026451,969.96 ,Evoqua Water Technologies Ltd
East Lindsey District Council,http://statistics.data.gov.uk/id/local-authority/32UC,AD Leisure & Culture,Buildings Maintenance - Programmed,24/10/2023,30026452,728.25 ,Evoqua Water Technologies Ltd
East Lindsey District Council,http://statistics.data.gov.uk/id/local-authority/32UC,AD Leisure & Culture,Buildings Maintenance - Programmed,24/10/2023,30026453,794.46 ,Evoqua Water Technologies Ltd
East Lindsey District Council,http://statistics.data.gov.uk/id/local-authority/32UC,AD Leisure & Culture,Buildings Maintenance - Programmed,24/10/2023,30026759,322.00 ,Selmec Lincoln Ltd
East Lindsey District Council,http://statistics.data.gov.uk/id/local-authority/32UC,AD Leisure & Culture,Buildings Maintenance - Responsive,24/10/2023,30026657,745.35 ,Airco Refrigeration Air Conditioning Ltd
East Lindsey District Council,http://statistics.data.gov.uk/id/local-authority/32UC,AD Leisure & Culture,Buildings Maintenance - Responsive,24/10/2023,30026764,630.80 ,Andrew Sykes Hire
East Lindsey District Council,http://statistics.data.gov.uk/id/local-authority/32UC,Climate Change and Environment,Staff Training Expenses (Non-Payroll),24/10/2023,30026831,"3,748.50 ",The Retrofit Academy CIC
East Lindsey District Council,http://statistics.data.gov.uk/id/local-authority/32UC,Development Control,Professional and Contractors Fees,24/10/2023,30026650,"4,500.00 ",BNP Paribas
East Lindsey District Council,http://statistics.data.gov.uk/id/local-authority/32UC,Development Control,Professional and Contractors Fees,24/10/2023,30026851,"1,400.00 ",Nexus Planning
East Lindsey District Council,http://statistics.data.gov.uk/id/local-authority/32UC,Enforcement,Staff Recruitment,24/10/2023,30026286,"1,741.22 ",G2 Recruitment Solutions
East Lindsey District Council,http://statistics.data.gov.uk/id/local-authority/32UC,Environmental Health,Other agencies,24/10/2023,30026895,"4,725.00 ",Kingdom Local Authority Support
East Lindsey District Council,http://statistics.data.gov.uk/id/local-authority/32UC,Environmental Health,Other Miscellaneous Expenses,24/10/2023,30026680,800.00 ,A17 Boarding Kennels
East Lindsey District Council,http://statistics.data.gov.uk/id/local-authority/32UC,Environmental Health,Professional and Contractors Fees,24/10/2023,30026689,"1,312.50 ",G2 Recruitment Solutions
East Lindsey District Council,http://statistics.data.gov.uk/id/local-authority/32UC,Healthy Living Services Manager,Grants and Contributions - Where a Service is Received,24/10/2023,30026875,"6,596.75 ",Citizens Advice Lindsey
East Lindsey District Council,http://statistics.data.gov.uk/id/local-authority/32UC,Healthy Living Services Manager,Grants and Contributions to Outside Bodies - No Service Received,24/10/2023,30026876,"15,300.00 ",Citizens Advice Lindsey
East Lindsey District Council,http://statistics.data.gov.uk/id/local-authority/32UC,Healthy Living Services Manager,Grants and Contributions to Outside Bodies - No Service Received,24/10/2023,30026947,"1,000.00 ",Horncastle Chef
East Lindsey District Council,http://statistics.data.gov.uk/id/local-authority/32UC,Invest East Lindsey,Works to Buildings (Main Contractor),24/10/2023,30026371,597.55 ,Huws Gray Buildbase
East Lindsey District Council,http://statistics.data.gov.uk/id/local-authority/32UC,Neighbourhoods,Buildings Maintenance - Programmed,24/10/2023,30026454,749.45 ,Evoqua Water Technologies Ltd
East Lindsey District Council,http://statistics.data.gov.uk/id/local-authority/32UC,Neighbourhoods,Buildings Maintenance - Programmed,24/10/2023,30026495,427.08 ,Brenntag UK Limited
East Lindsey District Council,http://statistics.data.gov.uk/id/local-authority/32UC,Neighbourhoods,Buildings Maintenance - Programmed,24/10/2023,30026932,510.08 ,Brenntag UK Limited
East Lindsey District Council,http://statistics.data.gov.uk/id/local-authority/32UC,Neighbourhoods,Grounds Maintenance Contract (External),24/10/2023,30026721,"12,105.09 ",Glendale Grounds Management Limited
East Lindsey District Council,http://statistics.data.gov.uk/id/local-authority/32UC,Neighbourhoods,Materials and Consumables,24/10/2023,30026857,"1,134.50 ",Lubbe and Sons (Bulbs) Ltd
East Lindsey District Council,http://statistics.data.gov.uk/id/local-authority/32UC,Neighbourhoods,Other Private Contractors,24/10/2023,30026720,"52,271.22 ",Danfo UK Ltd
East Lindsey District Council,http://statistics.data.gov.uk/id/local-authority/32UC,Organisation Improvement & Development,Staff Training Expenses (Non-Payroll),24/10/2023,30026805,400.00 ,Imagine Public Services Ltd
East Lindsey District Council,http://statistics.data.gov.uk/id/local-authority/32UC,"Performance, Governance & Commissioning",Chairman's Costs,24/10/2023,30026856,825.00 ,The Vine Hotel
East Lindsey District Council,http://statistics.data.gov.uk/id/local-authority/32UC,"Performance, Governance & Commissioning",Grants and Contributions to Outside Bodies - No Service Received,24/10/2023,30026933,350.00 ,Marshchapel Parish Council
East Lindsey District Council,http://statistics.data.gov.uk/id/local-authority/32UC,"Performance, Governance & Commissioning",Grants and Contributions to Outside Bodies - No Service Received,24/10/2023,30026934,500.00 ,Wainfleet Methodist Church
East Lindsey District Council,http://statistics.data.gov.uk/id/local-authority/32UC,Planning Policy,Professional and Contractors Fees,24/10/2023,30026840,"18,159.98 ",Create Consulting Engineers Ltd
East Lindsey District Council,http://statistics.data.gov.uk/id/local-authority/32UC,Property,Buildings Maintenance - Programmed,24/10/2023,30026445,995.00 ,Dutypoint Ltd
East Lindsey District Council,http://statistics.data.gov.uk/id/local-authority/32UC,Property,Buildings Maintenance - Programmed,24/10/2023,30026454,749.45 ,Evoqua Water Technologies Ltd
East Lindsey District Council,http://statistics.data.gov.uk/id/local-authority/32UC,Property,Buildings Maintenance - Programmed,24/10/2023,30026495,427.08 ,Brenntag UK Limited
East Lindsey District Council,http://statistics.data.gov.uk/id/local-authority/32UC,Property,Buildings Maintenance - Programmed,24/10/2023,30026932,510.08 ,Brenntag UK Limited
East Lindsey District Council,http://statistics.data.gov.uk/id/local-authority/32UC,Property,Buildings Maintenance - Responsive,24/10/2023,30026656,244.25 ,Airco Refrigeration Air Conditioning Ltd
East Lindsey District Council,http://statistics.data.gov.uk/id/local-authority/32UC,Property,Cleaning Contract,24/10/2023,30026589,"1,492.25 ",Mitie Cleaning & Environmental Services Ltd
East Lindsey District Council,http://statistics.data.gov.uk/id/local-authority/32UC,Property,Cleaning Contract,24/10/2023,30026590,"1,492.25 ",Mitie Cleaning & Environmental Services Ltd
East Lindsey District Council,http://statistics.data.gov.uk/id/local-authority/32UC,Property,Cleaning Contract,24/10/2023,30026591,"1,492.25 ",Mitie Cleaning & Environmental Services Ltd
East Lindsey District Council,http://statistics.data.gov.uk/id/local-authority/32UC,Property,Cleaning Contract,24/10/2023,30026592,"1,492.25 ",Mitie Cleaning & Environmental Services Ltd
East Lindsey District Council,http://statistics.data.gov.uk/id/local-authority/32UC,Property,Cleaning Contract,24/10/2023,30026593,"1,492.25 ",Mitie Cleaning & Environmental Services Ltd
East Lindsey District Council,http://statistics.data.gov.uk/id/local-authority/32UC,Property,Grounds Maintenance Contract (External),24/10/2023,30026721,"12,105.09 ",Glendale Grounds Management Limited
East Lindsey District Council,http://statistics.data.gov.uk/id/local-authority/32UC,Property,Other Private Contractors,24/10/2023,30026720,"52,271.22 ",Danfo UK Ltd
East Lindsey District Council,http://statistics.data.gov.uk/id/local-authority/32UC,Property,Professional and Contractors Fees,24/10/2023,30026435,350.00 ,Lambert Smith Hampton
East Lindsey District Council,http://statistics.data.gov.uk/id/local-authority/32UC,Property,Professional and Contractors Fees,24/10/2023,30026475,"3,014.10 ",Kings Armoured Security Services Ltd
East Lindsey District Council,http://statistics.data.gov.uk/id/local-authority/32UC,Property,Professional and Contractors Fees,24/10/2023,30026489,"6,472.62 ",Biffa Waste Services Ltd
East Lindsey District Council,http://statistics.data.gov.uk/id/local-authority/32UC,Property,Professional and Contractors Fees,24/10/2023,30026536,"15,490.00 ",International Parking Systems UK Grp Ltd
East Lindsey District Council,http://statistics.data.gov.uk/id/local-authority/32UC,Property,Professional and Contractors Fees,24/10/2023,30026585,818.18 ,Chipside Ltd
East Lindsey District Council,http://statistics.data.gov.uk/id/local-authority/32UC,Property,Professional and Contractors Fees,24/10/2023,30026586,318.07 ,Chipside Ltd
East Lindsey District Council,http://statistics.data.gov.uk/id/local-authority/32UC,Property,Rent Payments,24/10/2023,30026370,"1,494.67 ",Lincolnshire County Council
East Lindsey District Council,http://statistics.data.gov.uk/id/local-authority/32UC,Property,Subscriptions to Organisations and Other Bodies,24/10/2023,30026619,"1,581.95 ",Experian
East Lindsey District Council,http://statistics.data.gov.uk/id/local-authority/32UC,Waste,Fuel and Oil,24/10/2023,30026310,"3,757.65 ",Morris Lubricants
East Lindsey District Council,http://statistics.data.gov.uk/id/local-authority/32UC,Waste,Fuel and Oil,24/10/2023,30026317,"4,760.94 ",Allstar Business Solutions Ltd
East Lindsey District Council,http://statistics.data.gov.uk/id/local-authority/32UC,Waste,Furniture and Equipment,24/10/2023,30026344,"1,600.00 ",Bartec Municipal Technologies Limited
East Lindsey District Council,http://statistics.data.gov.uk/id/local-authority/32UC,Waste,Other Private Contractors,24/10/2023,30026390,284.57 ,Glass Recycling UK Ltd
East Lindsey District Council,http://statistics.data.gov.uk/id/local-authority/32UC,Waste,Vehicle Hire,24/10/2023,30026308,"3,780.00 ",Excel Trucks Ltd
East Lindsey District Council,http://statistics.data.gov.uk/id/local-authority/32UC,Waste,Workshop Parts,24/10/2023,30026276,347.02 ,Ford and Slater DAF (Lincoln Newark)
East Lindsey District Council,http://statistics.data.gov.uk/id/local-authority/32UC,Waste,Workshop Parts,24/10/2023,30026302,211.12 ,Dennis Eagle Ltd
East Lindsey District Council,http://statistics.data.gov.uk/id/local-authority/32UC,Waste,Workshop Parts,24/10/2023,30026303,349.68 ,Dennis Eagle Ltd
East Lindsey District Council,http://statistics.data.gov.uk/id/local-authority/32UC,Waste,Workshop Parts,24/10/2023,30026373,479.83 ,Waste Parts UK Ltd
East Lindsey District Council,http://statistics.data.gov.uk/id/local-authority/32UC,Waste,Workshop Parts,24/10/2023,30026408,"3,339.96 ",Partic Motor Spares Ltd
East Lindsey District Council,http://statistics.data.gov.uk/id/local-authority/32UC,Waste,Workshop Parts,24/10/2023,30026414,363.03 ,Partic Motor Spares Ltd
East Lindsey District Council,http://statistics.data.gov.uk/id/local-authority/32UC,Waste,Workshop Parts,24/10/2023,30026422,267.11 ,M E Autoparts Limited
East Lindsey District Council,http://statistics.data.gov.uk/id/local-authority/32UC,Waste,Workshop Parts,24/10/2023,30026425,285.63 ,M E Autoparts Limited
East Lindsey District Council,http://statistics.data.gov.uk/id/local-authority/32UC,Waste,Workshop Parts,24/10/2023,30026871,369.52 ,National Windscreens
East Lindsey District Council,http://statistics.data.gov.uk/id/local-authority/32UC,Waste,Workshop Parts,24/10/2023,30026944,714.67 ,N T Shaw of Louth
East Lindsey District Council,http://statistics.data.gov.uk/id/local-authority/32UC,Wellbeing Services Manager,Furniture and Equipment,24/10/2023,30026505,"1,187.00 ",Alertcom Limited
East Lindsey District Council,http://statistics.data.gov.uk/id/local-authority/32UC,AD Chief Finance Officer,Banking Charges,26/10/2023,30027191,"15,043.44 ",PAY360 Ltf
East Lindsey District Council,http://statistics.data.gov.uk/id/local-authority/32UC,AD Housing & Wellbeing,Bed and Breakfast Accommodation (Homelessness Service),26/10/2023,30026983,350.00 ,Baxter House
East Lindsey District Council,http://statistics.data.gov.uk/id/local-authority/32UC,AD Housing & Wellbeing,Bed and Breakfast Accommodation (Homelessness Service),26/10/2023,30026984,350.00 ,Baxter House
East Lindsey District Council,http://statistics.data.gov.uk/id/local-authority/32UC,AD Housing & Wellbeing,Furniture and Equipment,26/10/2023,30026990,"2,564.00 ",Woodlandz Furnishings GY Ltd
East Lindsey District Council,http://statistics.data.gov.uk/id/local-authority/32UC,AD Housing & Wellbeing,Grants and Contributions - Where a Service is Received,26/10/2023,30027022,"5,000.00 ",Citizens Advice Lindsey
East Lindsey District Council,http://statistics.data.gov.uk/id/local-authority/32UC,AD Housing & Wellbeing,Grants and Contributions to Outside Bodies - No Service Received,26/10/2023,30026987,"8,430.00 ",Closomat Ltd
East Lindsey District Council,http://statistics.data.gov.uk/id/local-authority/32UC,AD Housing & Wellbeing,Grants and Contributions to Outside Bodies - No Service Received,26/10/2023,30026991,"14,898.60 ",Lincolnshire Bathrooms and Wetrooms
East Lindsey District Council,http://statistics.data.gov.uk/id/local-authority/32UC,AD Housing & Wellbeing,Grants and Contributions to Outside Bodies - No Service Received,26/10/2023,30027049,500.00 ,Tetford Country Cottage
East Lindsey District Council,http://statistics.data.gov.uk/id/local-authority/32UC,AD Housing & Wellbeing,Rent Payments,26/10/2023,30026993,525.00 ,�Personal Information Redacted�
East Lindsey District Council,http://statistics.data.gov.uk/id/local-authority/32UC,AD Leisure & Culture,Buildings Maintenance - Responsive,26/10/2023,30026982,"4,824.92 ",Lincoln Security Ltd
East Lindsey District Council,http://statistics.data.gov.uk/id/local-authority/32UC,Business Manager - Towns Fund,Professional and Contractors Fees,26/10/2023,30027032,"1,012.88 ",BrightSpark Studios Limited
East Lindsey District Council,http://statistics.data.gov.uk/id/local-authority/32UC,Business Manager - Towns Fund,Professional and Contractors Fees,26/10/2023,30027033,"1,173.00 ",BrightSpark Studios Limited
East Lindsey District Council,http://statistics.data.gov.uk/id/local-authority/32UC,Climate Change and Environment,Professional and Contractors Fees,26/10/2023,30026474,288.80 ,Executive Consultancy Services Ltd
East Lindsey District Council,http://statistics.data.gov.uk/id/local-authority/32UC,Enabling Activities Housing Development,Grants and Contributions to Outside Bodies - No Service Received,26/10/2023,30026987,"4,215.00 ",Closomat Ltd
East Lindsey District Council,http://statistics.data.gov.uk/id/local-authority/32UC,Enabling Activities Housing Development,Grants and Contributions to Outside Bodies - No Service Received,26/10/2023,30026991,"7,449.30 ",Lincolnshire Bathrooms and Wetrooms
East Lindsey District Council,http://statistics.data.gov.uk/id/local-authority/32UC,Growth Relationships & Growth Promotions,Other Miscellaneous Expenses,26/10/2023,30026762,"6,258.98 ",Boston Borough Council
East Lindsey District Council,http://statistics.data.gov.uk/id/local-authority/32UC,Housing & Homelessness,Bed and Breakfast Accommodation (Homelessness Service),26/10/2023,30026983,350.00 ,Baxter House
East Lindsey District Council,http://statistics.data.gov.uk/id/local-authority/32UC,Housing & Homelessness,Bed and Breakfast Accommodation (Homelessness Service),26/10/2023,30026984,350.00 ,Baxter House
East Lindsey District Council,http://statistics.data.gov.uk/id/local-authority/32UC,Housing & Homelessness,Furniture and Equipment,26/10/2023,30026990,"2,564.00 ",Woodlandz Furnishings GY Ltd
East Lindsey District Council,http://statistics.data.gov.uk/id/local-authority/32UC,Housing & Homelessness,Grants and Contributions - Where a Service is Received,26/10/2023,30027022,"5,000.00 ",Citizens Advice Lindsey
East Lindsey District Council,http://statistics.data.gov.uk/id/local-authority/32UC,Housing & Homelessness,Grants and Contributions to Outside Bodies - No Service Received,26/10/2023,30026987,"4,215.00 ",Closomat Ltd
East Lindsey District Council,http://statistics.data.gov.uk/id/local-authority/32UC,Housing & Homelessness,Grants and Contributions to Outside Bodies - No Service Received,26/10/2023,30026991,"7,449.30 ",Lincolnshire Bathrooms and Wetrooms
East Lindsey District Council,http://statistics.data.gov.uk/id/local-authority/32UC,Housing & Homelessness,Grants and Contributions to Outside Bodies - No Service Received,26/10/2023,30027049,500.00 ,Tetford Country Cottage
East Lindsey District Council,http://statistics.data.gov.uk/id/local-authority/32UC,Housing & Homelessness,Rent Payments,26/10/2023,30026993,525.00 ,�Personal Information Redacted�
East Lindsey District Council,http://statistics.data.gov.uk/id/local-authority/32UC,Invest East Lindsey,Works to Buildings (Main Contractor),26/10/2023,30026995,"6,415.18 ",Gelder Ltd
East Lindsey District Council,http://statistics.data.gov.uk/id/local-authority/32UC,Neighbourhoods,Agency Staff,26/10/2023,30027050,"4,218.88 ",The Workshop (Wisbech) Ltd
East Lindsey District Council,http://statistics.data.gov.uk/id/local-authority/32UC,Neighbourhoods,Drainage Rates,26/10/2023,30027029,"1,563.10 ",Wave Anglian Water Business National Ltd
East Lindsey District Council,http://statistics.data.gov.uk/id/local-authority/32UC,Neighbourhoods,Electricity,26/10/2023,30026986,329.08 ,Wave Anglian Water Business National Ltd
East Lindsey District Council,http://statistics.data.gov.uk/id/local-authority/32UC,Neighbourhoods,Materials and Consumables,26/10/2023,30026862,545.80 ,Eastern Shires Purchasing Organisation
East Lindsey District Council,http://statistics.data.gov.uk/id/local-authority/32UC,Neighbourhoods,Professional and Contractors Fees,26/10/2023,30027058,801.36 ,Sid Dennis and Sons Ltd
East Lindsey District Council,http://statistics.data.gov.uk/id/local-authority/32UC,Neighbourhoods,Professional and Contractors Fees,26/10/2023,30027059,300.00 ,B and B Tree Specialists
East Lindsey District Council,http://statistics.data.gov.uk/id/local-authority/32UC,Neighbourhoods,Water and Sewerage Charges,26/10/2023,30027028,"1,544.65 ",Wave Anglian Water Business National Ltd
East Lindsey District Council,http://statistics.data.gov.uk/id/local-authority/32UC,Neighbourhoods,Water and Sewerage Charges,26/10/2023,30027037,583.90 ,Wave Anglian Water Business National Ltd
East Lindsey District Council,http://statistics.data.gov.uk/id/local-authority/32UC,Neighbourhoods,Water and Sewerage Charges,26/10/2023,30027039,618.61 ,Wave Anglian Water Business National Ltd
East Lindsey District Council,http://statistics.data.gov.uk/id/local-authority/32UC,Neighbourhoods,Water and Sewerage Charges,26/10/2023,30027040,"1,231.07 ",Wave Anglian Water Business National Ltd
East Lindsey District Council,http://statistics.data.gov.uk/id/local-authority/32UC,Neighbourhoods,Water and Sewerage Charges,26/10/2023,30027041,504.32 ,Wave Anglian Water Business National Ltd
East Lindsey District Council,http://statistics.data.gov.uk/id/local-authority/32UC,"Performance, Governance & Commissioning",Grants and Contributions to Outside Bodies - No Service Received,26/10/2023,30026978,500.00 ,St Bartholomew Heritage Trust
East Lindsey District Council,http://statistics.data.gov.uk/id/local-authority/32UC,"Performance, Governance & Commissioning",Grants and Contributions to Outside Bodies - No Service Received,26/10/2023,30026997,360.00 ,Sutton on Sea Gardening Group
East Lindsey District Council,http://statistics.data.gov.uk/id/local-authority/32UC,"Performance, Governance & Commissioning",Other Miscellaneous Expenses,26/10/2023,30026996,"1,485.00 ",Association of Electoral Administrators
East Lindsey District Council,http://statistics.data.gov.uk/id/local-authority/32UC,"Performance, Governance & Commissioning",Postages,26/10/2023,30026678,273.07 ,Royal Mail Group Ltd
East Lindsey District Council,http://statistics.data.gov.uk/id/local-authority/32UC,Property,Agency Staff,26/10/2023,30027020,"1,073.00 ",The Workshop (Wisbech) Ltd
East Lindsey District Council,http://statistics.data.gov.uk/id/local-authority/32UC,Property,Buildings Maintenance - Responsive,26/10/2023,30026992,"11,173.78 ",Lincolnshire County Council
East Lindsey District Council,http://statistics.data.gov.uk/id/local-authority/32UC,Property,Computer Hardware Maintenance,26/10/2023,30027007,"2,937.00 ",Paperwork
East Lindsey District Council,http://statistics.data.gov.uk/id/local-authority/32UC,Property,Drainage Rates,26/10/2023,30027029,"1,563.10 ",Wave Anglian Water Business National Ltd
East Lindsey District Council,http://statistics.data.gov.uk/id/local-authority/32UC,Property,Electricity,26/10/2023,30026986,329.08 ,Wave Anglian Water Business National Ltd
East Lindsey District Council,http://statistics.data.gov.uk/id/local-authority/32UC,Property,Professional and Contractors Fees,26/10/2023,30027062,719.70 ,Freeths LLP
East Lindsey District Council,http://statistics.data.gov.uk/id/local-authority/32UC,Property,Water and Sewerage Charges,26/10/2023,30027028,"1,544.65 ",Wave Anglian Water Business National Ltd
East Lindsey District Council,http://statistics.data.gov.uk/id/local-authority/32UC,Property,Water and Sewerage Charges,26/10/2023,30027037,583.90 ,Wave Anglian Water Business National Ltd
East Lindsey District Council,http://statistics.data.gov.uk/id/local-authority/32UC,Property,Water and Sewerage Charges,26/10/2023,30027039,618.61 ,Wave Anglian Water Business National Ltd
East Lindsey District Council,http://statistics.data.gov.uk/id/local-authority/32UC,Property,Water and Sewerage Charges,26/10/2023,30027040,"1,231.07 ",Wave Anglian Water Business National Ltd
East Lindsey District Council,http://statistics.data.gov.uk/id/local-authority/32UC,Property,Water and Sewerage Charges,26/10/2023,30027041,504.32 ,Wave Anglian Water Business National Ltd
East Lindsey District Council,http://statistics.data.gov.uk/id/local-authority/32UC,Waste,Agency Staff,26/10/2023,30027004,"5,484.23 ",Red Rock Partnership Ltd
East Lindsey District Council,http://statistics.data.gov.uk/id/local-authority/32UC,Waste,Fuel and Oil,26/10/2023,30026504,"19,341.00 ",Rix Petroleum
East Lindsey District Council,http://statistics.data.gov.uk/id/local-authority/32UC,Waste,Workshop Parts,26/10/2023,30026523,246.12 ,M E Autoparts Limited
East Lindsey District Council,http://statistics.data.gov.uk/id/local-authority/32UC,Waste,Workshop Parts,26/10/2023,30026608,332.50 ,M E Autoparts Limited
East Lindsey District Council,http://statistics.data.gov.uk/id/local-authority/32UC,AD Capital - Regulation,Professional and Contractors Fees,31/10/2023,30026648,"3,101.10 ",G2 Recruitment Solutions
East Lindsey District Council,http://statistics.data.gov.uk/id/local-authority/32UC,AD Capital - Regulation,Subscriptions to Organisations and Other Bodies,31/10/2023,30026925,"1,439.60 ",Bsi Membership
East Lindsey District Council,http://statistics.data.gov.uk/id/local-authority/32UC,AD Capital - Strategic Growth and Development,Grants and Contributions to Outside Bodies - No Service Received,31/10/2023,30027054,"25,300.00 ",Wolds Community Transport Project
East Lindsey District Council,http://statistics.data.gov.uk/id/local-authority/32UC,AD Capital - Strategic Projects,Professional and Contractors Fees,31/10/2023,30026966,"27,000.00 ",Arcadis
East Lindsey District Council,http://statistics.data.gov.uk/id/local-authority/32UC,AD Capital - Strategic Projects,Professional and Contractors Fees,31/10/2023,30027128,"55,006.10 ",G F Tomlinson Building Limited
East Lindsey District Council,http://statistics.data.gov.uk/id/local-authority/32UC,AD Capital - Strategic Projects,Works to Buildings (Main Contractor),31/10/2023,30026919,"751,816.12 ",Alliance Leisure Services Limited
East Lindsey District Council,http://statistics.data.gov.uk/id/local-authority/32UC,AD Housing & Wellbeing,Computer Software Licence Costs,31/10/2023,30026693,810.00 ,Symetri Ltd
East Lindsey District Council,http://statistics.data.gov.uk/id/local-authority/32UC,AD Housing & Wellbeing,Course Fees,31/10/2023,30026692,545.00 ,Specialist Vocational Training Ltd
East Lindsey District Council,http://statistics.data.gov.uk/id/local-authority/32UC,AD Housing & Wellbeing,Grants and Contributions to Outside Bodies - No Service Received,31/10/2023,30027065,"5,000.00 ",Lincolnshire Community Foundation
East Lindsey District Council,http://statistics.data.gov.uk/id/local-authority/32UC,AD Housing & Wellbeing,Grants and Contributions to Outside Bodies - No Service Received,31/10/2023,30027084,433.00 ,�Personal Information Redacted�
East Lindsey District Council,http://statistics.data.gov.uk/id/local-authority/32UC,AD Housing & Wellbeing,Grants and Contributions to Outside Bodies - No Service Received,31/10/2023,30027121,"1,250.00 ",GF Design Services
East Lindsey District Council,http://statistics.data.gov.uk/id/local-authority/32UC,AD Housing & Wellbeing,Grants and Contributions to Outside Bodies - No Service Received,31/10/2023,30027196,404.16 ,Longhurst Group
East Lindsey District Council,http://statistics.data.gov.uk/id/local-authority/32UC,AD Housing & Wellbeing,Other Miscellaneous Expenses,31/10/2023,30026937,605.00 ,Waste Away Clearance Service
East Lindsey District Council,http://statistics.data.gov.uk/id/local-authority/32UC,AD Housing & Wellbeing,Rent Payments,31/10/2023,30027057,440.00 ,�Personal Information Redacted�
East Lindsey District Council,http://statistics.data.gov.uk/id/local-authority/32UC,AD Leisure & Culture,Buildings Maintenance - Programmed,31/10/2023,30026555,"1,050.00 ",H20 Servicing Ltd
East Lindsey District Council,http://statistics.data.gov.uk/id/local-authority/32UC,AD Leisure & Culture,Buildings Maintenance - Responsive,31/10/2023,30026564,774.88 ,Aaron Services Ltd
East Lindsey District Council,http://statistics.data.gov.uk/id/local-authority/32UC,Building Control,Professional and Contractors Fees,31/10/2023,30026648,"1,550.55 ",G2 Recruitment Solutions
East Lindsey District Council,http://statistics.data.gov.uk/id/local-authority/32UC,Building Control,Subscriptions to Organisations and Other Bodies,31/10/2023,30026925,719.80 ,Bsi Membership
East Lindsey District Council,http://statistics.data.gov.uk/id/local-authority/32UC,Business Manager - Towns Fund,Legal Fees,31/10/2023,30026561,"2,904.72 ",Freeths LLP
East Lindsey District Council,http://statistics.data.gov.uk/id/local-authority/32UC,Business Manager - Towns Fund,Legal Fees,31/10/2023,30026562,218.40 ,Freeths LLP
East Lindsey District Council,http://statistics.data.gov.uk/id/local-authority/32UC,Business Manager - Towns Fund,Professional and Contractors Fees,31/10/2023,30027092,"11,000.00 ",Garner Heritage Consultants Limited
East Lindsey District Council,http://statistics.data.gov.uk/id/local-authority/32UC,DC Revenues & Benefits,Other Income,31/10/2023,30026979,499.41 ,Bristow and Sutor
East Lindsey District Council,http://statistics.data.gov.uk/id/local-authority/32UC,Development Control,Professional and Contractors Fees,31/10/2023,30026541,"2,880.00 ",Sensus Architecture Ltd
East Lindsey District Council,http://statistics.data.gov.uk/id/local-authority/32UC,Development Control,Professional and Contractors Fees,31/10/2023,30026542,"2,880.00 ",Sensus Architecture Ltd
East Lindsey District Council,http://statistics.data.gov.uk/id/local-authority/32UC,Development Control,Professional and Contractors Fees,31/10/2023,30026543,"1,440.00 ",Sensus Architecture Ltd
East Lindsey District Council,http://statistics.data.gov.uk/id/local-authority/32UC,Economic Growth Service Manager (Place),Other Miscellaneous Expenses,31/10/2023,30026613,680.00 ,Stonebow Media Ltd
East Lindsey District Council,http://statistics.data.gov.uk/id/local-authority/32UC,Economic Growth Service Manager (Place),Other Miscellaneous Expenses,31/10/2023,30027096,751.20 ,Allison Print and Supplies
East Lindsey District Council,http://statistics.data.gov.uk/id/local-authority/32UC,Economic Growth Service Manager (Place),Professional and Contractors Fees,31/10/2023,30026854,"1,480.00 ",Dave Skells Traffic Management Ltd
East Lindsey District Council,http://statistics.data.gov.uk/id/local-authority/32UC,Enabling Activities Housing Development,Computer Software Licence Costs,31/10/2023,30026693,405.00 ,Symetri Ltd
East Lindsey District Council,http://statistics.data.gov.uk/id/local-authority/32UC,Enabling Activities Housing Development,Grants and Contributions to Outside Bodies - No Service Received,31/10/2023,30027121,625.00 ,GF Design Services
East Lindsey District Council,http://statistics.data.gov.uk/id/local-authority/32UC,Enforcement,Staff Recruitment,31/10/2023,30026530,"3,247.14 ",G2 Recruitment Solutions
East Lindsey District Council,http://statistics.data.gov.uk/id/local-authority/32UC,Enforcement,Staff Recruitment,31/10/2023,30026531,"1,647.10 ",G2 Recruitment Solutions
East Lindsey District Council,http://statistics.data.gov.uk/id/local-authority/32UC,Environmental Health,Other Miscellaneous Expenses,31/10/2023,30026726,"1,040.00 ",A17 Boarding Kennels
East Lindsey District Council,http://statistics.data.gov.uk/id/local-authority/32UC,Environmental Health,Other Miscellaneous Expenses,31/10/2023,30027010,"1,520.00 ",A17 Boarding Kennels
East Lindsey District Council,http://statistics.data.gov.uk/id/local-authority/32UC,Environmental Health,Other Miscellaneous Expenses,31/10/2023,30027185,"2,300.00 ",arundawn dog rescue
East Lindsey District Council,http://statistics.data.gov.uk/id/local-authority/32UC,Growth Relationships & Growth Promotions,Other Miscellaneous Expenses,31/10/2023,30026613,680.00 ,Stonebow Media Ltd
East Lindsey District Council,http://statistics.data.gov.uk/id/local-authority/32UC,Growth Relationships & Growth Promotions,Other Miscellaneous Expenses,31/10/2023,30027096,751.20 ,Allison Print and Supplies
East Lindsey District Council,http://statistics.data.gov.uk/id/local-authority/32UC,Growth Relationships & Growth Promotions,Professional and Contractors Fees,31/10/2023,30026854,"1,480.00 ",Dave Skells Traffic Management Ltd
East Lindsey District Council,http://statistics.data.gov.uk/id/local-authority/32UC,Housing & Homelessness,Computer Software Licence Costs,31/10/2023,30026693,405.00 ,Symetri Ltd
East Lindsey District Council,http://statistics.data.gov.uk/id/local-authority/32UC,Housing & Homelessness,Grants and Contributions to Outside Bodies - No Service Received,31/10/2023,30027084,433.00 ,�Personal Information Redacted�
East Lindsey District Council,http://statistics.data.gov.uk/id/local-authority/32UC,Housing & Homelessness,Grants and Contributions to Outside Bodies - No Service Received,31/10/2023,30027121,625.00 ,GF Design Services
East Lindsey District Council,http://statistics.data.gov.uk/id/local-authority/32UC,Housing & Homelessness,Grants and Contributions to Outside Bodies - No Service Received,31/10/2023,30027196,404.16 ,Longhurst Group
East Lindsey District Council,http://statistics.data.gov.uk/id/local-authority/32UC,Housing & Homelessness,Other Miscellaneous Expenses,31/10/2023,30026937,605.00 ,Waste Away Clearance Service
East Lindsey District Council,http://statistics.data.gov.uk/id/local-authority/32UC,Housing & Homelessness,Rent Payments,31/10/2023,30027057,440.00 ,�Personal Information Redacted�
East Lindsey District Council,http://statistics.data.gov.uk/id/local-authority/32UC,Information Technology,Materials and Consumables,31/10/2023,30026664,245.10 ,Probrand Limited
East Lindsey District Council,http://statistics.data.gov.uk/id/local-authority/32UC,Information Technology,Telephones,31/10/2023,30026538,"3,291.51 ",EMPSN Services Limited
East Lindsey District Council,http://statistics.data.gov.uk/id/local-authority/32UC,Information Technology,Telephones,31/10/2023,30026539,"4,059.71 ",EMPSN Services Limited
East Lindsey District Council,http://statistics.data.gov.uk/id/local-authority/32UC,Information Technology,Telephones,31/10/2023,30026540,"3,321.18 ",EMPSN Services Limited
East Lindsey District Council,http://statistics.data.gov.uk/id/local-authority/32UC,Information Technology,Telephones,31/10/2023,30026588,"4,059.71 ",EMPSN Services Limited
East Lindsey District Council,http://statistics.data.gov.uk/id/local-authority/32UC,Information Technology,Telephones,31/10/2023,30026949,"9,175.00 ",Vodafone Ltd Corporate
East Lindsey District Council,http://statistics.data.gov.uk/id/local-authority/32UC,Neighbourhoods,Agency Staff,31/10/2023,30027201,"3,725.40 ",The Workshop (Wisbech) Ltd
East Lindsey District Council,http://statistics.data.gov.uk/id/local-authority/32UC,Neighbourhoods,Materials and Consumables,31/10/2023,30026859,691.37 ,Eastern Shires Purchasing Organisation
East Lindsey District Council,http://statistics.data.gov.uk/id/local-authority/32UC,Neighbourhoods,Materials and Consumables,31/10/2023,30027042,475.00 ,Glendale Grounds Management Limited
East Lindsey District Council,http://statistics.data.gov.uk/id/local-authority/32UC,Neighbourhoods,Professional and Contractors Fees,31/10/2023,30027202,686.88 ,Sid Dennis and Sons Ltd
East Lindsey District Council,http://statistics.data.gov.uk/id/local-authority/32UC,Neighbourhoods,Professional and Contractors Fees,31/10/2023,30027215,480.80 ,Sid Dennis and Sons Ltd
East Lindsey District Council,http://statistics.data.gov.uk/id/local-authority/32UC,Neighbourhoods,Water and Sewerage Charges,31/10/2023,30027190,271.25 ,Wave Anglian Water Business National Ltd
East Lindsey District Council,http://statistics.data.gov.uk/id/local-authority/32UC,Organisation Improvement & Development,Staff Training Expenses (Non-Payroll),31/10/2023,30026333,"2,476.80 ",Public Sector Partnership Services Ltd
East Lindsey District Council,http://statistics.data.gov.uk/id/local-authority/32UC,"Performance, Governance & Commissioning",Agency Staff,31/10/2023,30026677,368.45 ,Root2 Recruit
East Lindsey District Council,http://statistics.data.gov.uk/id/local-authority/32UC,"Performance, Governance & Commissioning",Agency Staff,31/10/2023,30027035,708.18 ,Root2 Recruit
East Lindsey District Council,http://statistics.data.gov.uk/id/local-authority/32UC,"Performance, Governance & Commissioning",Agency Staff,31/10/2023,30027055,674.69 ,Root2 Recruit
East Lindsey District Council,http://statistics.data.gov.uk/id/local-authority/32UC,"Performance, Governance & Commissioning",Compensation,31/10/2023,30027082,"1,289.40 ",East Coast Gymnastics
East Lindsey District Council,http://statistics.data.gov.uk/id/local-authority/32UC,"Performance, Governance & Commissioning",Grants and Contributions to Outside Bodies - No Service Received,31/10/2023,30027079,500.00 ,Frithville and Westville Parish Council
East Lindsey District Council,http://statistics.data.gov.uk/id/local-authority/32UC,"Performance, Governance & Commissioning",Grants and Contributions to Outside Bodies - No Service Received,31/10/2023,30027219,500.00 ,Louth Cricket Club
East Lindsey District Council,http://statistics.data.gov.uk/id/local-authority/32UC,Property,Agency Staff,31/10/2023,30027108,555.00 ,The Workshop (Wisbech) Ltd
East Lindsey District Council,http://statistics.data.gov.uk/id/local-authority/32UC,Property,Buildings Maintenance - Responsive,31/10/2023,30027072,"3,700.00 ",Pest Lincs Ltd
East Lindsey District Council,http://statistics.data.gov.uk/id/local-authority/32UC,Property,Buildings Maintenance - Responsive,31/10/2023,30027161,560.00 ,Safe Sound Security Systems Links Ltd
East Lindsey District Council,http://statistics.data.gov.uk/id/local-authority/32UC,Property,Buildings Maintenance - Responsive,31/10/2023,30027163,420.00 ,Safe Sound Security Systems Links Ltd
East Lindsey District Council,http://statistics.data.gov.uk/id/local-authority/32UC,Property,Fuel and Oil,31/10/2023,30026675,"1,321.32 ",Watson Fuels
East Lindsey District Council,http://statistics.data.gov.uk/id/local-authority/32UC,Property,Maintenance,31/10/2023,30027104,683.44 ,Chandlers (Farm Equipment) Ltd
East Lindsey District Council,http://statistics.data.gov.uk/id/local-authority/32UC,Property,Maintenance,31/10/2023,30027212,750.00 ,The Tractor Shop
East Lindsey District Council,http://statistics.data.gov.uk/id/local-authority/32UC,Property,Other Private Contractors,31/10/2023,30027165,584.00 ,GRS Signs Ltd
East Lindsey District Council,http://statistics.data.gov.uk/id/local-authority/32UC,Property,Premises Lease Payments (More than 12 months),31/10/2023,30026614,"5,833.33 ",Innes England
East Lindsey District Council,http://statistics.data.gov.uk/id/local-authority/32UC,Property,Professional and Contractors Fees,31/10/2023,30027125,"2,600.00 ",Lincolnshire County Council
East Lindsey District Council,http://statistics.data.gov.uk/id/local-authority/32UC,Property,Water and Sewerage Charges,31/10/2023,30027077,"1,913.74 ",Wave Anglian Water Business National Ltd
East Lindsey District Council,http://statistics.data.gov.uk/id/local-authority/32UC,Property,Water and Sewerage Charges,31/10/2023,30027190,271.25 ,Wave Anglian Water Business National Ltd
East Lindsey District Council,http://statistics.data.gov.uk/id/local-authority/32UC,Transformation Services Manager,Grants and Contributions to Outside Bodies - No Service Received,31/10/2023,30027065,"5,000.00 ",Lincolnshire Community Foundation
East Lindsey District Council,http://statistics.data.gov.uk/id/local-authority/32UC,Waste,Agency Staff,31/10/2023,30026908,"4,610.20 ",Red Rock Partnership Ltd
East Lindsey District Council,http://statistics.data.gov.uk/id/local-authority/32UC,Waste,Agency Staff,31/10/2023,30027150,"5,247.27 ",Red Rock Partnership Ltd
East Lindsey District Council,http://statistics.data.gov.uk/id/local-authority/32UC,Waste,Cleaning Contract,31/10/2023,30026644,517.12 ,Safetykleen
East Lindsey District Council,http://statistics.data.gov.uk/id/local-authority/32UC,Waste,Materials and Consumables,31/10/2023,30027127,385.00 ,GRS Signs Ltd
East Lindsey District Council,http://statistics.data.gov.uk/id/local-authority/32UC,Waste,Workshop Parts,31/10/2023,30026533,743.35 ,Terberg Matec UK
East Lindsey District Council,http://statistics.data.gov.uk/id/local-authority/32UC,Waste,Workshop Parts,31/10/2023,30026547,299.44 ,Dennis Eagle Ltd
East Lindsey District Council,http://statistics.data.gov.uk/id/local-authority/32UC,Waste,Workshop Parts,31/10/2023,30026552,359.19 ,Pentagon Motor Group
East Lindsey District Council,http://statistics.data.gov.uk/id/local-authority/32UC,Waste,Workshop Parts,31/10/2023,30026596,471.93 ,Dennis Eagle Ltd
East Lindsey District Council,http://statistics.data.gov.uk/id/local-authority/32UC,Waste,Workshop Parts,31/10/2023,30026598,222.36 ,Dennis Eagle Ltd
East Lindsey District Council,http://statistics.data.gov.uk/id/local-authority/32UC,Waste,Workshop Parts,31/10/2023,30026600,320.76 ,Dennis Eagle Ltd
East Lindsey District Council,http://statistics.data.gov.uk/id/local-authority/32UC,Waste,Workshop Parts,31/10/2023,30026674,458.68 ,Bucher Municipal
East Lindsey District Council,http://statistics.data.gov.uk/id/local-authority/32UC,Waste,Workshop Parts,31/10/2023,30026700,858.36 ,M E Autoparts Limited
East Lindsey District Council,http://statistics.data.gov.uk/id/local-authority/32UC,Wellbeing Services Manager,Course Fees,31/10/2023,30026692,545.00 ,Specialist Vocational Training Ltd
